Workbook

Sheet Open
A2: Stephen Reich Group
A3: Fut 22 | B3: DER | C3: Age Inc | D3: HS | E3: Y/co | F3: Youth | G3: Draw | H3: Rider Name | I3: Horse Name | K3: Guess | L3: Time | M3: Placing | N3: Money Earned | P3: D Placing | R3: Split
D4: X | G4: 52 | H4: Lisa Thornton | I4: Straight Toasted | L4: 15.746 | M4: 1D 1st | N4: 1163.52 | P4: 1D | Q4: 15.746
G5: 13 | H5: Josianne St-Cyr | I5: Panther Dash | L5: 15.76 | M5: 1D 2nd | N5: 969.6 | P5: 2D | Q5: =SUM(Q4+0.5) -> 16.246 | R5: 0.5
C6: S | G6: 15 | H6: Lanita Pierce | I6: Famous Wahini | L6: 15.761 | M6: 1D 3rd | N6: 824.16 | P6: 3D | Q6: =SUM(Q4+1) -> 16.746 | R6: 0.5
G7: 274 | H7: Lacy Billingsley | I7: PV Watchmeneighneigh | L7: 15.787 | M7: 1D 4th | N7: 630.24 | P7: 4D | Q7: =SUM(Q4+1.5) -> 17.246 | R7: 0.5
G8: 219 | H8: Wyatt Paul | I8: Tres Cups Of Sugar | L8: 15.8 | M8: 1D 5th | N8: 484.8 | P8: 5D | Q8: =SUM(Q4+2) -> 17.746 | R8: 0.5
G9: 89 | H9: Emery Mask | I9: Little Power Proof | K9: 15.787 | L9: 15.802 | M9: 1D 6th | N9: 339.36
C10: A | D10: X | G10: 275 | H10: Mindy Hollaway | I10: Heavens Got Cerdit | K10: 15.7 | L10: 15.819 | M10: 1D 7th | N10: 242.4 | P10: # Entered
G11: 220 | H11: Josi St-Cyr | I11: Designed Ny Starlight | L11: 15.874 | M11: 1D 8th | N11: 193.92 | P11: =COUNTA(H4:H503) -> 305
G12: 276 | H12: SheaLynn McCOnnell | I12: Im So Sway | L12: 15.892
G13: 277 | H13: Lisa Thornton | I13: LT The Lucky One | K13: 15.832 | L13: 15.897 | P13: # Ran
G14: 25 | H14: Natalie Bland | I14: Bayou Cold One | K14: 15.724 | L14: 15.906 | P14: =COUNTA(L4:L503) -> 305
D15: X | G15: 278 | H15: Hallie Hannsen | I15: Ms French Walla Walla | K15: 15.542 | L15: 15.91
G16: 187 | H16: Brandee Hawkins | I16: Max | L16: 15.912 | P16: # Left
G17: 163 | H17: Jane Melby | I17: RC Famous In Black | L17: 15.951 | P17: =$P$11-$P$14 -> 0
G18: 16 | H18: Kelli Acreman | I18: DK Buggin Fame | L18: 15.958
C19: S | G19: 279 | H19: Kelly Bruner | I19: PLL Shadrach | K19: 15.9 | L19: 15.959
G20: 81 | H20: Kylena Hager | I20: Stolis Tipsy Gypsy | K20: 16.57 | L20: 15.978
G21: 125 | H21: Kortni McConnell | I21: FreightTrain Ta Fame | L21: 15.99
E22: X | F22: X | G22: 158 | H22: Hayva Hawkins | I22: Sundays First Bolt | J22: 0.105 | K22: 16.101 | L22: 15.996
C23: A | G23: 221 | H23: Patricia Aldridge | I23: Baymee | L23: 15.998
G24: 280 | H24: Ryann Pedone | I24: Flying Wonder | L24: 16.002
G25: 281 | H25: Cristin Posey | I25: Double Rockin W | K25: 15.85 | L25: 16.027
G26: 121 | H26: Emery Mask | I26: Daddys Lil Diva | K26: 16.404 | L26: 16.028
G27: 153 | H27: Christi Durfey | I27: Delightful Brownies | K27: 16.009 | L27: 16.032
G28: 162 | H28: Jesse King | I28: French Oleo | L28: 16.037
G29: 222 | H29: Kelsey Treharne | I29: CID Highwind | L29: 16.053
G30: 223 | H30: Lacy Harmon | I30: Cant Judge My Socks | L30: 16.068
D31: X | G31: 282 | H31: Dawn Link | I31: Domintnator | K31: 15.88 | L31: 16.086
G32: 86 | H32: Kortni McConnell | I32: Scratch At The Gate | L32: 16.099
G33: 283 | H33: Kylie Bowles | I33: Slick A Lena | K33: 15.752 | L33: 16.102
C34: A | D34: X | G34: 94 | H34: Denny Ralls | I34: SV Southern Comfort | K34: 16.001 | L34: 16.104
C35: S | G35: 175 | H35: Fawn Aldrich | I35: Superflyrartreasure | L35: 16.131
G36: 95 | H36: Taryn Parsonage | I36: Quick Ta Cash In | L36: 16.134
G37: 35 | H37: Wendy Suhn | I37: HLH Streakin A Fling | K37: 15.847 | L37: 16.145
G38: 224 | H38: Ashley Schafer | I38: Swoon To Be Famous | L38: 16.149
G39: 4 | H39: Ashley Harvey | I39: Perks Of Being Famous | L39: 16.153
C40: S | G40: 203 | H40: Joy Cameron | I40: This Guy Rocks | K40: 15.71 | L40: 16.167
C41: S | G41: 97 | H41: Lisa Wernli | I41: Flashs Fine Effort | J41: 0.115 | K41: 16.283 | L41: 16.168
D42: X | E42: X | F42: X | G42: 212 | H42: Patton Lynch | I42: JJJ Bonnie Ray | K42: 15.682 | L42: 16.174
G43: 226 | H43: Kelly Bruner | I43: KnuckleBuster | K43: 16 | L43: 16.185
G44: 196 | H44: Jane Melby | I44: Frisky Ta FAME | L44: 16.187
G45: 146 | H45: Whitney Metker | I45: Dracoos Breeze | J45: 0.012 | K45: 16.2 | L45: 16.188
C46: A | G46: 77 | H46: Cheyenne Harris | I46: One Blazin Fire | L46: 16.189
G47: 88 | H47: Billie Ann Harmon | I47: The Dungaree Moon | K47: 16.12 | L47: 16.194
G48: 31 | H48: Sydney Swatsell | I48: Smalls | K48: 16.5 | L48: 16.236
G49: 284 | H49: WENdy Suhn | I49: Jess Be Gone | K49: 15.939 | L49: 16.244
G50: 285 | H50: Kara Kreder | I50: Civil War Hero | K50: 15.86 | L50: 16.244
C51: S | G51: 27 | H51: Amy Swan | I51: Boons Prescription | K51: 16.124 | L51: 16.252 | M51: 2D 1st/2nd | N51: 889
C52: S | G52: 286 | H52: Kathy Warren | I52: Promise Me Sunshine | K52: 16.047 | L52: 16.252 | M52: 2D 1st/2nd | N52: 889
G53: 108 | H53: Leslie Worthey | I53: JN My Heaven | L53: 16.26 | M53: 2D 3rd | N53: 686.8
G54: 229 | H54: Kelsey Treharne | I54: Blazin Ta Betty | L54: 16.275 | M54: 2D 4th | N54: 525.2
E55: X | F55: X | G55: 211 | H55: Brylee Moore | I55: TRR Pepcids Lil Dove | K55: 16.133 | L55: 16.276 | M55: 2D 5th | N55: 404
E56: X | F56: X | G56: 199 | H56: Sammie Willoughby | I56: Runnin Fast | K56: 16.78 | L56: 16.287 | M56: 2D 6th | N56: 282.8
C57: A | G57: 200 | H57: Angie Wiesen | I57: Snazzyinbeautyjeans | K57: 15.9 | L57: 16.293 | M57: 2D 7th | N57: 202
C58: S | D58: X | G58: 23 | H58: DeeDee JordAN | I58: Firin For Jack | K58: 16.1 | L58: 16.296 | M58: 2D 8th | N58: 161.6
C59: A | G59: 58 | H59: Noah Grimes | I59: California Clone | L59: 16.312
C60: S | G60: 287 | H60: Dee Dee Jordan | I60: A Guy With Magnolias | J60: 0.182 | K60: 16.5 | L60: 16.318
G61: 62 | H61: Dee Bigham | I61: Freighttrain Cash | K61: 15.894 | L61: 16.332
G62: 230 | H62: Molli Montgomery | L62: 16.333
G63: 22 | H63: Jancie Shelburne | I63: Ima Chrome Cowboy | L63: 16.344
E64: X | F64: X | G64: 155 | H64: Hadley Durfey | I64: Jess Blazin Otoe | K64: 16.106 | L64: 16.354
G65: 233 | H65: Jesse King | I65: Lion Ta The Ladies | L65: 16.358
E66: X | F66: X | G66: 151 | H66: Sophie Kodet | I66: Reckless Hush Money | J66: 0.14 | K66: 16.5 | L66: 16.36
C67: S | G67: 149 | H67: Teresa McCLendon | I67: Striking Poses | L67: 16.369
E68: X | F68: X | G68: 142 | H68: Lila Jardine | I68: Fancy Streak | K68: 15.9 | L68: 16.388
C69: A | G69: 82 | H69: Aimee Montgomery | L69: 16.394
G70: 231 | H70: Kelsey Treharne | I70: TS SpecialLeder PYC | L70: 16.404
G71: 288 | H71: Emmas Wildiesen | I71: Rivons Mr America | L71: 16.406
C72: A | G72: 161 | H72: Molly Steffen | I72: Lola | J72: 0.101 | K72: 16.512 | L72: 16.411
C73: S | G73: 128 | H73: Lisa Wernli | I73: Babe On The Run | K73: 16.315 | L73: 16.411
G74: 145 | H74: Lynn Saunders | I74: Kool | L74: 16.423
G75: 289 | H75: Ashley Harvey | I75: FC Straight Cajun | K75: 15.85 | L75: 16.423
G76: 109 | H76: Gabbie Grothe | I76: Sold Out | L76: 16.424
C77: S | G77: 290 | H77: Jamie Odell | I77: The Super Bully | K77: 16.23 | L77: 16.437
G78: 234 | H78: Kelsey Treharne | I78: RDC SeisShotsOfFame | L78: 16.451
C79: S | G79: 291 | H79: Cindy Shepherd | I79: Especially Mine | K79: 16.03 | L79: 16.454
C80: A | D80: X | G80: 92 | H80: Lainie Whitmire | I80: Bullseye Bullion | L80: 16.456
G81: 292 | H81: Rachel Dahl | I81: French By Design | K81: 15.97 | L81: 16.466
C82: S | G82: 293 | H82: Shelly Shields | I82: Tres French Kiss | K82: 16.2 | L82: 16.47
G83: 37 | H83: Gena Franklin | I83: SS StreakyMe | K83: 16.01 | L83: 16.476
G84: 235 | H84: Ben Beall | I84: Chicksdashforhayes | L84: 16.48
G85: 182 | H85: Jo Fisher | K85: 16.347 | L85: 16.482
G86: 45 | H86: Josianne St-Cyr | I86: Tom | L86: 16.501
C87: A | G87: 156 | H87: Shantell Hayes | L87: 16.513
G88: 236 | H88: Lacy Billingsley | I88: Smokin The Fame | L88: 16.516
G89: 65 | H89: Sydney Swatsell | I89: Feature Me Firin | J89: 0.175 | K89: 16.7 | L89: 16.525
G90: 73 | H90: Jessica McBain | I90: Rumble Gun | L90: 16.526
G91: 237 | H91: Ben Beall | I91: Slick Swingin | L91: 16.532
G92: 30 | H92: Karen Shelley | I92: Starbert Roy Leo | K92: 16.341 | L92: 16.533
G93: 5 | H93: Lea Baze | I93: A Guy With Try | L93: 16.534
G94: 195 | H94: Jesse King | I94: Happy To Be Streakin | L94: 16.536
C95: S | G95: 41 | H95: Pat Oates | I95: Holy Fire N Money | K95: 16.276 | L95: 16.559
G96: 238 | H96: Jade Crago | I96: KG Fab Expectations | K96: 16.072 | L96: 16.579
C97: A | G97: 214 | H97: Randi Roberts | I97: Colour Chart | K97: 16 | L97: 16.581
G98: 198 | H98: Carley Conoway | I98: Nobodys Fired | L98: 16.585
G99: 113 | H99: Kristel Ising | I99: Dashing Miss Gray | L99: 16.59
E100: X | F100: X | G100: 90 | H100: Lila Jardine | I100: Fortuneate Fame | K100: 15.938 | L100: 16.603
C101: S | G101: 185 | H101: Kristi Tuinei | I101: Zipper | L101: 16.607
G102: 160 | H102: Kara Kreder | I102: Rebel Packin Fame | K102: 16.358 | L102: 16.607
C103: A | G103: 78 | H103: Brooke Kelley | I103: No Bueno Karma | J103: 0.036 | K103: 16.649 | L103: 16.613
G104: 48 | H104: Kortni McConnell | I104: Showered In Kisses | L104: 16.631
G105: 53 | H105: Presleigh Akers | I105: Short NitaLena | J105: 0.211 | K105: 16.85 | L105: 16.639
C106: A | G106: 140 | H106: Merritt Potter | I106: Perks Alive 75 | L106: 16.655
G107: 239 | H107: Ryann Pedone | I107: Kiss My Tada | L107: 16.665
G108: 244 | H108: Hallie Hanssen | I108: Sweet Kandy Kiss | K108: 16.142 | L108: 16.669
C109: S | G109: 46 | H109: Shelly Shields | I109: Toast | K109: 15.6 | L109: 16.674
G110: 148 | H110: Casey Hammons | I110: BH Trip Ta Fame | J110: 0.007 | K110: 16.69 | L110: 16.683
G111: 210 | H111: Madison Smith | I111: Little Catty Kitty | K111: 16.586 | L111: 16.691
G112: 8 | H112: Tiffany Earp | I112: Shes Chasing Vegas | K112: 16.595 | L112: 16.7
G113: 294 | H113: Kara Kreder | I113: VF Kiss The Prince | J113: 0.217 | K113: 15.92 | L113: 16.703
G114: 245 | H114: Christy Durfey | I114: Frenchmans Wowzer | K114: 16.479 | L114: 16.711
E115: X | F115: X | G115: 179 | H115: Louis-Josef Veilleux | I115: Famous Cartel Legacy | L115: 16.712
G116: 116 | H116: Claire Neuman | I116: Biar French Six Guns | L116: 16.714
C117: A | D117: X | G117: 14 | H117: Andrea Busby | I117: Mattie Myers | L117: 16.719
G118: 139 | H118: Jamie Lybbert | I118: Lulu Stinson | L118: 16.731
C119: A | G119: 191 | H119: Jennifer Abbott | I119: Wendell | K119: 17.289 | L119: 16.742
G120: 246 | H120: Ashley Schafer | I120: Makin Dark Money | L120: 16.742
G121: 247 | H121: Rachel Dahl | I121: Fair Share Of Charm | K121: 16.56 | L121: 16.743
E122: X | F122: X | G122: 205 | H122: Ashley Hunt | I122: High On Koak | K122: 16.351 | L122: 16.75 | M122: 3D 1st | N122: 775.68
C123: A | G123: 19 | H123: Jill Markelle | I123: Fame N Six Guys | L123: 16.76 | M123: 3D 2nd | N123: 646.4
C124: S | G124: 118 | H124: Amy Vincik | I124: Cahil | L124: 16.787 | M124: 3D 3rd | N124: 549.44
E125: X | F125: X | G125: 110 | H125: Lila Jardine | I125: Naduah | K125: 16.201 | L125: 16.794 | M125: 3D 4th/5th | N125: 372
G126: 208 | H126: Megan Wilson | I126: Rainy Special Day | K126: 16.4 | L126: 16.794 | M126: 3D 4th/5th | N126: 372
G127: 248 | H127: Lacey Harmon | I127: Thunderflash | L127: 16.802 | M127: 3D 6th | N127: 226.24
G128: 249 | H128: Kelsey Gordon | I128: Frenchmans Tres Jet | K128: 16.534 | L128: 16.81 | M128: 3D 7th | N128: 161.6
G129: 72 | H129: Jenna Napier | I129: Frenchmans Dually | K129: 16.101 | L129: 16.814 | M129: 3D 8th | N129: 129.28
G130: 192 | H130: Lynn Saunders | I130: Chumley | L130: 16.818
G131: 75 | H131: Briley Reeves | I131: Woody B Perky | L131: 16.82
G132: 171 | H132: Lori Hall | I132: Crafty Kitty | L132: 16.82
G133: 114 | H133: Jenna Napier | I133: Cash N The Bar | K133: 16.812 | L133: 16.843
G134: 250 | H134: Ryann Pedone | I134: HP Famous Fiesta | L134: 16.843
G135: 63 | H135: Natalie Bland | I135: Famous Fiesta Twist | K135: 16.75 | L135: 16.845
G136: 49 | H136: Valerie Ford | I136: Hesa Streak Of Fame | L136: 16.855
G137: 166 | H137: Ruby SteelePark | I137: Media On Fire | L137: 16.856
G138: 295 | H138: Tiffany Durham | I138: Behold A Man | L138: 16.865
G139: 169 | H139: Lauren Chambers | I139: Ariana Sunrisa | K139: 15.16 | L139: 16.871
G140: 124 | H140: Jesse Budd | I140: Flicker Nic | K140: 16.799 | L140: 16.912
C141: A | G141: 251 | H141: Kaylyn Smith | I141: Knailed It | K141: 16.4 | L141: 16.929
G142: 50 | H142: Chasity Hastings | I142: Ceesasmartenterprise | K142: 17.431 | L142: 16.944
C143: A | G143: 40 | H143: Susan Agnew | I143: Streaking String Bean | L143: 16.955
G144: 252 | H144: Phillip Kenyon | I144: Fly As Queen | L144: 16.966
G145: 178 | H145: Lindsey Decker | I145: Beaus Shooter | L145: 16.973
G146: 253 | H146: Ashley Schafer | I146: French Streakof Fame | L146: 16.975
C147: S | G147: 102 | H147: Jolene Jones | I147: Mark Me Angels | L147: 16.986
C148: A | G148: 74 | H148: Jennifer Cullen | I148: Chasin Annies Fame | L148: 16.995
G149: 154 | H149: Amber Wagner | I149: One Smooth Kelly | J149: 0.096 | K149: 17.1 | L149: 17.004
C150: S | G150: 147 | H150: Tammy Rokus | I150: Smooth Luvin | K150: 16.457 | L150: 17.011
E151: X | F151: X | G151: 181 | H151: Madeleine Moll | K151: 16.997 | L151: 17.046
G152: 1 | H152: Holly Pritchard | I152: Bogies French Moon | L152: 17.051
G153: 254 | H153: Fran Denham | I153: KWMiPunkinFirewater | L153: 17.054
G154: 255 | H154: Rachel Dahl | I154: Mr JB 1710 | K154: 16.432 | L154: 17.06
G155: 167 | H155: Justine Botner | I155: VF Victoria Secret | L155: 17.068
C156: S | G156: 51 | H156: Lanita Pierce | I156: Cahill | L156: 17.071
G157: 297 | H157: Tiffany Durham | I157: Stolin Rubies | K157: 16.308 | L157: 17.071
G158: 217 | H158: Kaydi Anderson | I158: DL Dare To Fly | L158: 17.078
G159: 54 | H159: Camie Hastings | I159: AP Sierra | J159: 0.204 | K159: 17.32 | L159: 17.116
C160: A | G160: 193 | H160: Cheyenne Rondeax | I160: One Famous Flash | K160: 16.734 | L160: 17.123
G161: 150 | H161: Brandee Hawkins | I161: The Pressure Got perks | L161: 17.133
G162: 136 | H162: Abigail Plants | I162: Kn Stopbuginmenailey | L162: 17.134
G163: 87 | H163: Lanita Pierce | I163: He Is An Oakie With Bux | L163: 17.146
G164: 60 | H164: Ryann Pedone | I164: Callie | L164: 17.155
G165: 36 | H165: Alana Fenti | I165: Nitros Fashionfrenzy | L165: 17.158
G166: 215 | H166: Sutton Eddings | I166: Elvis | K166: 16.674 | L166: 17.158
C167: A | G167: 256 | H167: Megan Fowler | I167: Je Suis LePrix | L167: 17.17
C168: S | G168: 42 | H168: Karen Hancock | I168: Just Anotherstreak | L168: 17.17
G169: 257 | H169: Ashley Schafer | I169: CFourVenomiss | L169: 17.171
G170: 296 | H170: Augie Nobile | I170: Jewelz N Corona | K170: 16.431 | L170: 17.175
G171: 55 | H171: Tiffany Durham | I171: Flyn Bayou Maggie | K171: 16.95 | L171: 17.177
E172: X | F172: X | G172: 96 | H172: Reid Gregory | I172: Megs Last Caddy | K172: 17.016 | L172: 17.186
G173: 258 | H173: Jade Crago | I173: Bound To Ba Hayday | K173: 16.492 | L173: 17.19
G174: 259 | H174: Ashley Nelson | I174: Reckless Roxie | L174: 17.197
G175: 111 | H175: Briley Reeves | I175: MV Thoughts Of Fame | L175: 17.203
F176: X | G176: 180 | H176: Austin Bednarz | I176: JE Docs French Lady | K176: 17.1 | L176: 17.204
G177: 29 | H177: Traci Preissl | I177: Go Breaking Bad | L177: 17.213
G178: 204 | H178: Abery Knight | I178: FC Strait Bluebonnet | L178: 17.225
G179: 213 | H179: Joy Wargo | I179: A Cash Streak | K179: 16.522 | L179: 17.227
G180: 260 | H180: Kelli Acreman | I180: Slick N Easy Design | L180: 17.284 | M180: 4D 1st | N180: 581.76
G181: 261 | H181: Jesse Clare Bland | I181: Bet Captains | K181: 16.7 | L181: 17.297 | M181: 4D 2nd | N181: 484.8
G182: 93 | H182: Cathy Caskey | I182: Pass On Red | K182: 16.634 | L182: 17.312 | M182: 4D 3rd | N182: 412.08
G183: 188 | H183: Rosie Webster | I183: Ty | L183: 17.343 | M183: 4D 4th | N183: 315
C184: S | G184: 85 | H184: Karen Coskrey | I184: TS Dream Drifter | L184: 17.349 | M184: 4D 5th | N184: 242
G185: 262 | H185: Jessica McRae | I185: A Tres Of Firewater | L185: 17.352 | M185: 4D 6th | N185: 169.68
C186: S | G186: 98 | H186: Linda McConnell | I186: Pretty French Girl | L186: 17.392 | M186: 4D 7th/8th | N186: 109
C187: S | G187: 176 | H187: Cheryl Mason | I187: Mr Irish Lea | K187: 16.978 | L187: 17.392 | M187: 4D 7th/8th | N187: 109
C188: A | G188: 174 | H188: Becca Dahmes | I188: WJ Whats Her Face | K188: 16.67 | L188: 17.401
C189: S | G189: 263 | H189: Jenny Zant | I189: Dashin Ike | K189: 16.765 | L189: 17.401
C190: S | G190: 71 | H190: Simone Elmore | I190: Mitey Moon Dash | K190: 17.01 | L190: 17.406
G191: 264 | H191: Billie Ann Harmon | I191: PYC Pick Your FLing | K191: 16.63 | L191: 17.417
E192: X | F192: X | G192: 112 | H192: Emma Mateus | I192: Shining Chex Bar | L192: 17.432
G193: 152 | H193: Shaelynn Hazaleus | I193: Struttineffortlessly | K193: 17.84 | L193: 17.479
C194: A | G194: 209 | H194: Mandy Trojcak | I194: Calamity | K194: 16.257 | L194: 17.484
E195: X | F195: X | G195: 135 | H195: Kimber Steffen | I195: Frosty | J195: 0.077 | K195: 17.571 | L195: 17.494
C196: A | G196: 265 | H196: Molli Montgomery | I196: One Slick Fame | L196: 17.495
C197: S | G197: 119 | H197: Elaine Foreman | I197: Boogies Moon Pie | L197: 17.511
G198: 33 | H198: Kelly Barr | I198: Im The Guy For U | K198: 16.97 | L198: 17.528
G199: 225 | H199: Jane Melby | I199: Justasiexpectedblk | L199: 17.551
G200: 2 | H200: Timberly Erickson | I200: Mines Fast | L200: 17.561
G201: 107 | H201: Valerie Ford | I201: Jets Easy Cash | L201: 17.566
... 302 more rows

Sheet Senior
C1: Senior
A2: Futurity | B2: Der | C2: Senior | D2: BBR | E2: Draw | F2: Rider Name | G2: Horse Name | H2: guessed | I2: Time | J2: Placing | K2: Money Earned
E3: 1 | F3: Lanita Pierce | G3: Famous Wahini | I3: 15.761 | J3: 1D 1st | K3: 130
E4: 2 | F4: Kelly Bruner | G4: PLL Shadrach | H4: 15.9 | I4: 15.959 | J4: 1D 2nd | K4: 87
E5: 3 | F5: Fawn Aldrich | G5: Superflyrartreasure | I5: 16.131
E6: 4 | F6: Joy Cameron | G6: This Guy Rocks | H6: 15.71 | I6: 16.167
E7: 5 | F7: Lisa Wernli | G7: Flashs Fine Effort | H7: 16.283 | I7: 16.168
F8: kathy Warren | G8: Promise Me Sunshine | I8: 16.252
E9: 6 | F9: Amy Swan | G9: Boons Prescription | H9: 16.124 | I9: 16.252
E10: 7 | F10: DeeDee JordAN | G10: Firin For Jack | H10: 16.1 | I10: 16.296 | J10: 2D 1st | K10: 112
E11: 8 | F11: Dee Dee Jordan | G11: A Guy With Magnolias | H11: 16.5 | I11: 16.318 | J11: 2D 2nd | K11: 74
E12: 9 | F12: Teresa McCLendon | G12: Striking Poses | I12: 16.369
E13: 10 | F13: Lisa Wernli | G13: Babe On The Run | H13: 16.315 | I13: 16.411
E14: 11 | F14: Jamie Odell | G14: The Super Bully | H14: 16.23 | I14: 16.437
E15: 12 | F15: Cindy Shepherd | G15: Especially Mine | H15: 16.03 | I15: 16.454
E16: 13 | F16: Shelly Shields | G16: Tres French Kiss | H16: 16.2 | I16: 16.47
E17: 14 | F17: Pat Oates | G17: Holy Fire N Money | H17: 16.276 | I17: 16.559
E18: 15 | F18: Kristi Tuinei | G18: Zipper | I18: 16.607
E19: 16 | F19: Shelly Shields | G19: Toast | H19: 15.6 | I19: 16.674
E20: 17 | F20: Amy Vincik | G20: Cahil | I20: 16.787 | J20: 3D 1st | K20: 74
E21: 18 | F21: Jolene Jones | G21: Mark Me Angels | I21: 16.986 | J21: 3D 2nd | K21: 50
E22: 19 | F22: Tammy Rokus | G22: Smooth Luvin | H22: 16.457 | I22: 17.011
E23: 20 | F23: Lanita Pierce | G23: Cahill | I23: 17.071
E24: 21 | F24: Karen Hancock | G24: Just Anotherstreak | I24: 17.17
E25: 22 | F25: Karen Coskrey | G25: TS Dream Drifter | I25: 17.349 | J25: 4D 1st | K25: 56
E26: 23 | F26: Linda McConnell | G26: Pretty French Girl | I26: 17.392 | J26: 4D 2nd | K26: 37
E27: 25 | F27: Cheryl Mason | G27: Mr Irish Lea | H27: 16.978 | I27: 17.392
E28: 26 | F28: Jenny Zant | G28: Dashin Ike | H28: 16.765 | I28: 17.401
E29: 27 | F29: Simone Elmore | G29: Mitey Moon Dash | H29: 17.01 | I29: 17.406
E30: 28 | F30: Elaine Foreman | G30: Boogies Moon Pie | I30: 17.511
E31: 29 | F31: Crystal Dahmes | G31: Mommas | H31: 18.2 | I31: 18.155
E32: 30 | F32: Crystal Dahmes | G32: Jimmie | H32: 18.6 | I32: broken
E33: 31 | F33: Fawn Aldrich | G33: Stripping Royalty | I33: nt17.610
E34: 32
E35: 24
E36: 33
E37: 34
E38: 35
E39: 36
E40: 37
E41: 38
E42: 39
E43: 40
E44: 41
E45: 42
E46: 43
E47: 44
E48: 45
E49: 46
E50: 47
E51: 48
E52: 49
E53: 50
E54: 51
E55: 52
E56: 53
E57: 54
E58: 55
E59: 56
E60: 57
E61: 58
E62: 59
E63: 60
E64: 61
E65: 62
E66: 63
E67: 64
E68: 65
E69: 66
E70: 67
E71: 68
E72: 69
E73: 70
E74: 71
E75: 72
E76: 73
E77: 74
E78: 75
E79: 76
E80: 77
E81: 78
E82: 79
E83: 80
E84: 81
E85: 82
E86: 83
E87: 84
E88: 85
E89: 86
E90: 87
E91: 88
E92: 89
E93: 90
E94: 91
E95: 92
E96: 93
E97: 94
E98: 95
E99: 96
E100: 97
E101: 98
E102: 99
E103: 100
E104: 101
E105: 102
E106: 103
E107: 104
E108: 105
E109: 106
E110: 107
E111: 108
E112: 109
E113: 110
E114: 111
E115: 112
E116: 113
E117: 114
E118: 115
E119: 116
E120: 117
E121: 118
E122: 119
E123: 120
E124: 121
E125: 122
E126: 123
E127: 124
E128: 125
E129: 126
E130: 127
E131: 128
E132: 129
E133: 130
E134: 131
E135: 132
E136: 133
E137: 134
E138: 135
E139: 136
E140: 137
E141: 138
E142: 139
E143: 140
E144: 141
E145: 142
E146: 143
E147: 144
E148: 145
E149: 146
E150: 147
E151: 148
E152: 149
E153: 150
E154: 151
E155: 152
E156: 153
E157: 154
E158: 155
E159: 156
E160: 157
E161: 158
E162: 159
E163: 160
E164: 161
E165: 162
E166: 163
E167: 164
E168: 165
E169: 166
E170: 167
E171: 168
E172: 169
E173: 170
E174: 171
E175: 172
E176: 173
E177: 174
E178: 175
E179: 176
E180: 177
E181: 178
E182: 179
E183: 180
E184: 181
E185: 182
E186: 183
E187: 184
E188: 185
E189: 186
E190: 187
E191: 188
E192: 189
E193: 190
E194: 191
E195: 192
E196: 193
E197: 194
E198: 195
E199: 196
E200: 197
... 103 more rows

Sheet Adult
C1: Adult
A2: Futurity | B2: Der | C2: Adult | D2: BBR | E2: Draw | F2: Rider Name | G2: Horse Name | H2: Guessed | I2: Time | J2: Placing | K2: Money Earned
E3: 1 | F3: Mindy Hollaway | G3: Heavens Got Cerdit | H3: 15.7 | I3: 15.819 | J3: 1D 1st | K3: 151
E4: 2 | F4: Patricia Aldridge | G4: Baymee | I4: 15.998 | J4: 1D 2nd | K4: 90
E5: 3 | F5: Denny Ralls | G5: SV Southern Comfort | H5: 16.001 | I5: 16.104 | J5: 1D 3rd | K5: 60
E6: 4 | F6: Cheyenne Harris | G6: One Blazin Fire | I6: 16.189
E7: 5 | F7: Angie Wiesen | G7: Snazzyinbeautyjeans | H7: 15.9 | I7: 16.293
E8: 6 | F8: Noah Grimes | G8: California Clone | I8: 16.312
E9: 7 | F9: Aimee Montgomery | I9: 16.394 | J9: 2D 1st | K9: 129
E10: 8 | F10: Molly Steffen | G10: Lola | H10: 16.512 | I10: 16.411 | J10: 2D 2nd | K10: 77
E11: 9 | F11: Lainie Whitmire | G11: Bullseye Bullion | I11: 16.456 | J11: 2D 3rd | K11: 52
E12: 10 | F12: Shantell Hayes | I12: 16.513
E13: 11 | F13: Randi Roberts | G13: Colour Chart | H13: 16 | I13: 16.581
E14: 22 | F14: Brooke Kelley | G14: No Bueno Karma | H14: 16.649 | I14: 16.613
E15: 12 | F15: Merritt Potter | G15: Perks Alive 75 | I15: 16.655
E16: 13 | F16: Andrea Busby | G16: Mattie Myers | I16: 16.719
E17: 14 | F17: Jennifer Abbott | G17: Wendell | H17: 17.289 | I17: 16.742
E18: 15 | F18: Jill Markelle | G18: Fame N Six Guys | I18: 16.76
E19: 16 | F19: Kaylyn Smith | G19: Knailed It | H19: 16.4 | I19: 16.929 | J19: 3D 1st | K19: 86
E20: 17 | F20: Susan Agnew | G20: Streaking String Bean | I20: 16.955 | J20: 3D 2nd | K20: 52
E21: 18 | F21: Jennifer Cullen | G21: Chasin Annies Fame | I21: 16.995 | J21: 3D 3rd | K21: 34
E22: 19 | F22: Cheyenne Rondeax | G22: One Famous Flash | H22: 16.734 | I22: 17.123
E23: 20 | F23: Megan Fowler | G23: Je Suis LePrix | I23: 17.17
E24: 21 | F24: Becca Dahmes | G24: WJ Whats Her Face | H24: 16.67 | I24: 17.401 | J24: 4D 1st | K24: 65
E25: 23 | F25: Mandy Trojcak | G25: Calamity | H25: 16.257 | I25: 17.484 | J25: 4D 2nd | K25: 39
E26: 24 | F26: Molli Montgomery | G26: One Slick Fame | I26: 17.495 | J26: 4D 3rd | K26: 26
E27: 25 | F27: Jennifer Abbott | G27: Hadley | H27: 17.289 | I27: 17.603
E28: 26 | F28: Merritt Potter | G28: Flamin Fire Power 76 | I28: 17.648
E29: 27 | F29: Baylee Casillas | G29: Enuff Bingo Pocowood | H29: 17.12 | I29: 17.705
E30: 28 | F30: Katie Elaine Dickerson | G30: Cowboy | H30: 17.028 | I30: 18.074
E31: 29 | F31: Christy Steckline | G31: Mandy Starr Daisy | I31: 19.046
E32: 30 | F32: KC Daragan | G32: Pritzi Steakin Dash | H32: 17.384 | I32: broken
E33: 31 | F33: Lainie Whitmire | G33: Dashin Ta Kill | I33: broken
E34: 32 | F34: Randi Roberts | G34: Dashin With The Best | H34: 15.9 | I34: broken
E35: 33 | F35: Ryann Pedone | G35: JS Milo N Stitch | I35: nt15.820
E36: 34 | F36: Stephanie Snazuk | G36: SR Ima Royal STreaKER | H36: 15.9 | I36: nt15.893
E37: 35 | F37: Shaylee Hindman | G37: Oscar | I37: nt16.115
E38: 36 | F38: Mindy Hollaway | G38: Smugglin Doubles | H38: 15.9 | I38: nt16.144
E39: 37 | F39: Kelly Allen | G39: Miss JB 165 | H39: 15.82 | I39: nt16.190
E40: 38 | F40: Andrea Busby | G40: Famous Heartbreaker | I40: nt16.316
E41: 39 | F41: Kaleigh Symonds | G41: Little Cat Big Money | H41: 16 | I41: nt16.367
E42: 40 | F42: Merritt Potter | G42: Si Can Too | I42: nt16.390
E43: 41 | F43: Patricia Aldridge | G43: Pritzi Stinsi 37 | I43: nt16.880
E44: 42 | F44: Angie Mitchell | G44: VF I Will Be Famous | H44: 16.791 | I44: nt16.983
E45: 43 | F45: Taylor Johnson | G45: Frenchmans Lady Xena | H45: 16.829 | I45: nt18.010
E46: 44
E47: 45
E48: 46
E49: 47
E50: 48
E51: 49
E52: 50
E53: 51
E54: 52
E55: 53
E56: 54
E57: 55
E58: 56
E59: 57
E60: 58
E61: 59
E62: 60
E63: 61
E64: 62
E65: 63
E66: 64
E67: 65
E68: 66
E69: 67
E70: 68
E71: 69
E72: 70
E73: 71
E74: 72
E75: 73
E76: 74
E77: 75
E78: 76
E79: 77
E80: 78
E81: 79
E82: 80
E83: 81
E84: 82
E85: 83
E86: 84
E87: 85
E88: 86
E89: 87
E90: 88
E91: 89
E92: 90
E93: 91
E94: 92
E95: 93
E96: 94
E97: 95
E98: 96
E99: 97
E100: 98
E101: 99
E102: 100
E103: 101
E104: 102
E105: 103
E106: 104
E107: 105
E108: 106
E109: 107
E110: 108
E111: 109
E112: 110
E113: 111
E114: 112
E115: 113
E116: 114
E117: 115
E118: 116
E119: 117
E120: 118
E121: 119
E122: 120
E123: 121
E124: 122
E125: 123
E126: 124
E127: 125
E128: 126
E129: 127
E130: 128
E131: 129
E132: 130
E133: 131
E134: 132
E135: 133
E136: 134
E137: 135
E138: 136
E139: 137
E140: 138
E141: 139
E142: 140
E143: 141
E144: 142
E145: 143
E146: 144
E147: 145
E148: 146
E149: 147
E150: 148
E151: 149
E152: 150
E153: 151
E154: 152
E155: 153
E156: 154
E157: 155
E158: 156
E159: 157
E160: 158
E161: 159
E162: 160
E163: 161
E164: 162
E165: 163
E166: 164
E167: 165
E168: 166
E169: 167
E170: 168
E171: 169
E172: 170
E173: 171
E174: 172
E175: 173
E176: 174
E177: 175
E178: 176
E179: 177
E180: 178
E181: 179
E182: 180
E183: 181
E184: 182
E185: 183
E186: 184
E187: 185
E188: 186
E189: 187
E190: 188
E191: 189
E192: 190
E193: 191
E194: 192
E195: 193
E196: 194
E197: 195
E198: 196
E199: 197
E200: 198
... 102 more rows

Sheet Youth
C1: Youth
A2: Futurity | B2: Der | C2: Youth | D2: BBR | E2: Draw | F2: Rider Name | G2: Horse Name | I2: Time | J2: Placing | K2: Money Earned
E3: 1 | F3: Hayva Hawkins | G3: Sundays First Bolt | H3: 16.101 | I3: 15.996 | J3: 1D 1st | K3: 176
E4: 2 | F4: Patton Lynch | G4: JJJ Bonnie Ray | H4: 15.682 | I4: 16.174 | J4: 1D 2nd | K4: 118
E5: 3 | F5: Brylee Moore | G5: TRR Pepcids Lil Dove | H5: 16.133 | I5: 16.276
E6: 4 | F6: Sammie Willoughby | G6: Runnin Fast | H6: 16.78 | I6: 16.287
E7: 5 | F7: Hadley Durfey | G7: Jess Blazin Otoe | H7: 16.106 | I7: 16.354
E8: 6 | F8: Sophie Kodet | G8: Reckless Hush Money | H8: 16.5 | I8: 16.36
E9: 7 | F9: Lila Jardine | G9: Fancy Streak | H9: 15.9 | I9: 16.388
E10: 8 | F10: Lila Jardine | G10: Fortuneate Fame | H10: 15.938 | I10: 16.603 | J10: 2D 1st | K10: 151
E11: 9 | F11: Louis-Josef Veilleux | G11: Famous Cartel Legacy | I11: 16.712 | J11: 2D 2nd | K11: 101
E12: 10 | F12: Ashley Hunt | G12: High On Koak | H12: 16.351 | I12: 16.75
E13: 11 | F13: Lila Jardine | G13: Naduah | H13: 16.201 | I13: 16.794
E14: 12 | F14: Madeleine Moll | H14: 16.997 | I14: 17.046 | J14: 3D 1st | K14: 101
E15: 13 | F15: Reid Gregory | G15: Megs Last Caddy | I15: 17.186 | J15: 3D 2nd | K15: 67
E16: 14 | F16: Austin Bednarz | G16: JE Docs French Lady | H16: 17.1 | I16: 17.204
E17: 15 | F17: Emma Mateus | G17: Shining Chex Bar | I17: 17.432
E18: 16 | F18: Kimber Steffen | G18: Frosty | H18: 17.571 | I18: 17.494
E19: 17 | F19: Maliyah Hawkins | G19: BLO | I19: 17.625 | J19: 4D 1st | K19: 76
E20: 18 | F20: Haley Hunt | G20: GL Dashing Nonstop | H20: 16.899 | I20: 18.099 | J20: 4D 2nd | K20: 50
E21: 19 | F21: Jewelia Tolerson | G21: Wiley | I21: 18.421
E22: 20 | F22: Serenity Jones | G22: Scarlett | I22: 22.949
E23: 21 | F23: Sophie Roberts | G23: Marshmallow | I23: 27.224
E24: 22 | F24: Maylee McCrary | G24: Simba The Texas Jet | H24: 15.917 | I24: nt15.971
E25: 23 | F25: Breckyn Tippen | G25: GL Dashing To A Te | I25: nt16.059
E26: 24 | F26: Austin Bednarz | G26: Ima Fabulous Toole | H26: 16.8 | I26: nt16.421
E27: 25 | F27: Karlee Brown | G27: Fat Halbert | H27: 16.502 | I27: nt16.775
E28: 26 | F28: Kaylee Lehrmann | G28: KL Dashing Shine | H28: 17.15 | I28: nt16.997
E29: 27 | F29: Marli Donegan | G29: Blazen Fame | H29: 16.374 | I29: nt17.057
E30: 28 | F30: AJ Fouche | G30: Toffee | H30: 18.5 | I30: nt19.369
E31: 29 | F31: Bailey Fowler | G31: Streakin Lil Wayne | I31: nt16.378
E32: 30 | F32: Cienna Jacobsen | G32: Straight Up Smooth | H32: 16.737 | I32: nt16.700
E33: 31
E34: 32
E35: 33
E36: 34
E37: 35
E38: 36
E39: 37
E40: 38
E41: 39
E42: 40
E43: 41
E44: 42
E45: 43
E46: 44
E47: 45
E48: 46
E49: 47
E50: 48
E51: 49
E52: 50
E53: 51
E54: 52
E55: 53
E56: 54
E57: 55
E58: 56
E59: 57
E60: 58
E61: 59
E62: 60
E63: 61
E64: 62
E65: 63
E66: 64
E67: 65
E68: 66
E69: 67
E70: 68
E71: 69
E72: 70
E73: 71
E74: 72
E75: 73
E76: 74
E77: 75
E78: 76
E79: 77
E80: 78
E81: 79
E82: 80
E83: 81
E84: 82
E85: 83
E86: 84
E87: 85
E88: 86
E89: 87
E90: 88
E91: 89
E92: 90
E93: 91
E94: 92
E95: 93
E96: 94
E97: 95
E98: 96
E99: 97
E100: 98
E101: 99
E102: 100
E103: 101
E104: 102
E105: 103
E106: 104
E107: 105
E108: 106
E109: 107
E110: 108
E111: 109
E112: 110
E113: 111
E114: 112
E115: 113
E116: 114
E117: 115
E118: 116
E119: 117
E120: 118
E121: 119
E122: 120
E123: 121
E124: 122
E125: 123
E126: 124
E127: 125
E128: 126
E129: 127
E130: 128
E131: 129
E132: 130
E133: 131
E134: 132
E135: 133
E136: 134
E137: 135
E138: 136
E139: 137
E140: 138
E141: 139
E142: 140
E143: 141
E144: 142
E145: 143
E146: 144
E147: 145
E148: 146
E149: 147
E150: 148
E151: 149
E152: 150
E153: 151
E154: 152
E155: 153
E156: 154
E157: 155
E158: 156
E159: 157
E160: 158
E161: 159
E162: 160
E163: 161
E164: 162
E165: 163
E166: 164
E167: 165
E168: 166
E169: 167
E170: 168
E171: 169
E172: 170
E173: 171
E174: 172
E175: 173
E176: 174
E177: 175
E178: 176
E179: 177
E180: 178
E181: 179
E182: 180
E183: 181
E184: 182
E185: 183
E186: 184
E187: 185
E188: 186
E189: 187
E190: 188
E191: 189
E192: 190
E193: 191
E194: 192
E195: 193
E196: 194
E197: 195
E198: 196
E199: 197
E200: 198
... 102 more rows

Sheet Derby
B1: Derby
A2: Futurity | B2: Derby | C2: HS | D2: Age Inc | E2: R/O | F2: Draw | G2: Rider Name | H2: Horse Name | I2: Time Guessed | J2: Time | K2: Placing | L2: Money Earned
E3: X | F3: 27 | G3: L+G3:J26acy Billingsley | H3: PV Watchmeneighneigh | J3: 15.787 | K3: 1D 1st | L3: 1668.8
C4: X | D4: A | E4: X | F4: 41 | G4: Mindy Hollaway | H4: Heavens Got Cerdit | I4: 15.7 | J4: 15.819 | L4: 1251.6
E5: X | F5: 12 | G5: SheaLynn McCOnnell | H5: Im So Sway | J5: 15.892 | L5: 834.4
E6: X | F6: 23 | G6: Lisa Thornton | H6: LT The Lucky One | I6: 15.832 | J6: 15.897 | L6: 417.2
C7: X | E7: X | F7: 28 | G7: Hallie Hannsen | H7: Ms French Walla Walla | I7: 15.542 | J7: 15.91
D8: S | E8: X | F8: 2 | G8: Kelly Bruner | H8: PLL Shadrach | I8: 15.9 | J8: 15.959
E9: X | F9: 20 | G9: Ryann Pedone | H9: Flying Wonder | J9: 16.002
E10: X | F10: 30 | G10: Cristin Posey | H10: Double Rockin W | I10: 15.85 | J10: 16.027
C11: X | E11: X | F11: 9 | G11: Dawn Link | H11: Domintnator | I11: 15.88 | J11: 16.086
E12: X | F12: 26 | G12: Kylie Bowles | H12: Slick A Lena | I12: 15.752 | J12: 16.102
E13: X | F13: 13 | G13: WENdy Suhn | H13: Jess Be Gone | I13: 15.939 | J13: 16.244
E14: X | F14: 40 | G14: Kara Kreder | H14: Civil War Hero | I14: 15.86 | J14: 16.244
E15: X | F15: 25 | G15: Kathy Warren | H15: Promise Me Sunshine | I15: 16.047 | J15: 16.252
D16: S | E16: X | F16: 7 | G16: Dee Dee Jordan | H16: A Guy With Magnolias | I16: 16.5 | J16: 16.318 | K16: 2D 1st | L16: 715.2
E17: X | F17: 14 | G17: Emmas Wildiesen | H17: Rivons Mr America | J17: 16.406 | L17: 536.4
E18: X | F18: 32 | G18: Ashley Harvey | H18: FC Straight Cajun | I18: 15.85 | J18: 16.423 | L18: 357.6
D19: S | E19: X | F19: 4 | G19: Jamie Odell | H19: The Super Bully | I19: 16.23 | J19: 16.437 | L19: 178.8
D20: S | E20: X | F20: 29 | G20: Cindy Shepherd | H20: Especially Mine | I20: 16.03 | J20: 16.454
E21: X | F21: 15 | G21: Rachel Dahl | H21: French By Design | I21: 15.97 | J21: 16.466
D22: S | E22: X | F22: 16 | G22: Shelly Shields | H22: Tres French Kiss | I22: 16.2 | J22: 16.47
E23: X | F23: 3 | G23: Kara Kreder | H23: VF Kiss The Prince | I23: 15.92 | J23: 16.703
E24: X | F24: 1 | G24: Tiffany Durham | H24: Behold A Man | J24: 16.865
E25: X | F25: 19 | G25: Augie Nobile | H25: Jewelz N Corona | I25: 16.431 | J25: 17.175
E26: X | F26: 52 | G26: Tiffany Durham | H26: Stolin Rubies | I26: 16.308 | J26: 17.701
F27: 31 | G27: Baylee Casillas | H27: Enuff Bingo Pocowood | J27: 18.745
E28: X | F28: 17 | G28: Josey Groves | H28: JL Lava Roc | J28: nt15.945
D29: A | E29: X | F29: 5 | G29: Mindy Hollaway | H29: Smugglin Doubles | I29: 15.9 | J29: nt16.144
E30: X | F30: 10 | G30: Delaney Siebert | H30: Chile Cole | J30: nt16.151
C31: X | D31: A | E31: X | F31: 11 | G31: Kelly Allen | H31: Miss JB 165 | I31: 15.82 | J31: nt16.190
E32: X | F32: 37 | G32: Lacey Harmon | H32: Mended Heart | J32: nt16.257
D33: Y | E33: X | F33: 18 | G33: Bailey Fowler | H33: Streakin Lil Wayne | J33: nt16.378
D34: Y | E34: X | F34: 24 | G34: Cienna Jacobsen | H34: Straight Up Smooth | I34: 16.737 | J34: nt16.700
E35: X | F35: 6 | G35: Alexi Schaapveld | H35: Spendy By Design | I35: 16.437 | J35: nt17.149
E36: X | F36: 8 | G36: Rylee Shields | H36: Cheyenne Fab | J36: SCR
F37: 33
F38: 34
F39: 35
F40: 36
F41: 38
F42: 39
F43: 42
F44: 43
F45: 44
F46: 45
F47: 46
F48: 47
F49: 48
F50: 49
F51: 50
F52: 51
F53: 53
F54: 54
F55: 55
F56: 56
F57: 57
F58: 58
F59: 59
F60: 60
F61: 61
F62: 62
F63: 63
F64: 64
F65: 65
F66: 66
F67: 67
F68: 68
F69: 69
F70: 70
F71: 71
F72: 72
F73: 73
F74: 74
F75: 75
F76: 76
F77: 77
F78: 78
F79: 79
F80: 80
F81: 81
F82: 82
F83: 83
F84: 84
F85: 85
F86: 86
F87: 87
F88: 88
F89: 89
F90: 90
F91: 91
F92: 92
F93: 93
F94: 94
F95: 95
F96: 96
F97: 97
F98: 98
F99: 99
F100: 100
F101: 101
F102: 102
F103: 103
F104: 104
F105: 105
F106: 106
F107: 107
F108: 108
F109: 109
F110: 110
F111: 111
F112: 112
F113: 113
F114: 114
F115: 115
F116: 116
F117: 117
F118: 118
F119: 119
F120: 120
F121: 121
F122: 122
F123: 123
F124: 124
F125: 125
F126: 126
F127: 127
F128: 128
F129: 129
F130: 130
F131: 131
F132: 132
F133: 133
F134: 134
F135: 135
F136: 136
F137: 137
F138: 138
F139: 139
F140: 140
F141: 141
F142: 142
F143: 143
F144: 144
F145: 145
F146: 146
F147: 147
F148: 148
F149: 149
F150: 150
F151: 151
F152: 152
F153: 153
F154: 154
F155: 155
F156: 156
F157: 157
F158: 158
F159: 159
F160: 160
F161: 161
F162: 162
F163: 163
F164: 164
F165: 165
F166: 166
F167: 167
F168: 168
F169: 169
F170: 170
F171: 171
F172: 172
F173: 173
F174: 174
F175: 175
F176: 176
F177: 177
F178: 178
F179: 179
F180: 180
F181: 181
F182: 182
F183: 183
F184: 184
F185: 185
F186: 186
F187: 187
F188: 188
F189: 189
F190: 190
F191: 191
F192: 192
F193: 193
F194: 194
F195: 195
F196: 196
F197: 197
F198: 198
F199: 199
F200: 200
... 100 more rows

Sheet High Stakes
A1: High Stakes
A2: HS | B2: Der | C2: Age Inct. | D2: BBR | E2: Draw | F2: Rider Name | G2: Horse Name | H2: Guessed | I2: Time | J2: Placing | K2: Money Earned
E3: 1 | F3: Lisa Thornton | G3: Straight Toasted | I3: 15.746 | J3: 1st | K3: 480
E4: 2 | F4: Mindy Hollaway | G4: Heavens Got Cerdit | H4: 15.7 | I4: 15.819 | J4: 2nd | K4: 288
E5: 3 | F5: Hallie Hannsen | G5: Ms French Walla Walla | H5: 15.542 | I5: 15.91 | J5: 3rd | K5: 192
E6: 4 | F6: Dawn Link | G6: Domintnator | H6: 15.88 | I6: 16.086
E7: 5 | F7: Denny Ralls | G7: SV Southern Comfort | H7: 16.001 | I7: 16.104
E8: 6 | F8: Patton Lynch | G8: JJJ Bonnie Ray | H8: 15.682 | I8: 16.174
E9: 7 | F9: DeeDee JordAN | G9: Firin For Jack | H9: 16.1 | I9: 16.296
E10: 8 | F10: Lainie Whitmire | G10: Bullseye Bullion | I10: 16.456
E11: 9 | F11: Andrea Busby | G11: Mattie Myers | I11: 16.719
E12: 10 | F12: Ryann Pedone | G12: JS Milo N Stitch | I12: nt15.820
E13: 11 | F13: Kelly Allen | G13: Miss JB 165 | H13: 15.82 | I13: nt16.190
E14: 12 | F14: Andrea Busby | G14: Famous Heartbreaker | I14: nt16.316
E15: 13
E16: 14
E17: 15
E18: 16
E19: 17
E20: 18
E21: 19
E22: 20
E23: 21
E24: 22
E25: 23
E26: 24
E27: 25
E28: 26
E29: 27
E30: 28
E31: 29
E32: 30
E33: 31
E34: 32
E35: 33
E36: 34
E37: 35
E38: 36
E39: 37
E40: 38
E41: 39
E42: 40
E43: 41
E44: 42
E45: 43
E46: 44
E47: 45
E48: 46
E49: 47
E50: 48
E51: 49
E52: 50
E53: 51
E54: 52
E55: 53
E56: 54
E57: 55
E58: 56
E59: 57
E60: 58
E61: 59
E62: 60
E63: 61
E64: 62
E65: 63
E66: 64
E67: 65
E68: 66
E69: 67
E70: 68
E71: 69
E72: 70
E73: 71
E74: 72
E75: 73
E76: 74
E77: 75
E78: 76
E79: 77
E80: 78
E81: 79
E82: 80
E83: 81
E84: 82
E85: 83
E86: 84
E87: 85
E88: 86
E89: 87
E90: 88
E91: 89
E92: 90
E93: 91
E94: 92
E95: 93
E96: 94
E97: 95
E98: 96
E99: 97
E100: 98
E101: 99
E102: 100
E103: 101
E104: 102
E105: 103
E106: 104
E107: 105
E108: 106
E109: 107
E110: 108
E111: 109
E112: 110
E113: 111
E114: 112
E115: 113
E116: 114
E117: 115
E118: 116
E119: 117
E120: 118
E121: 119
E122: 120
E123: 121
E124: 122
E125: 123
E126: 124
E127: 125
E128: 126
E129: 127
E130: 128
E131: 129
E132: 130
E133: 131
E134: 132
E135: 133
E136: 134
E137: 135
E138: 136
E139: 137
E140: 138
E141: 139
E142: 140
E143: 141
E144: 142
E145: 143
E146: 144
E147: 145
E148: 146
E149: 147
E150: 148
E151: 149
E152: 150
E153: 151
E154: 152
E155: 153
E156: 154
E157: 155
E158: 156
E159: 157
E160: 158
E161: 159
E162: 160
E163: 161
E164: 162
E165: 163
E166: 164
E167: 165
E168: 166
E169: 167
E170: 168
E171: 169
E172: 170
E173: 171
E174: 172
E175: 173
E176: 174
E177: 175
E178: 176
E179: 177
E180: 178
E181: 179
E182: 180
E183: 181
E184: 182
E185: 183
E186: 184
E187: 185
E188: 186
E189: 187
E190: 188
E191: 189
E192: 190
E193: 191
E194: 192
E195: 193
E196: 194
E197: 195
E198: 196
E199: 197
E200: 198
... 102 more rows

Sheet Futurity 2022
A1: Futurity 2022
A2: Futurity | B2: HS | C2: Age Inct. | D2: R/O | E2: Draw | F2: Rider Name | G2: Horse Name | H2: guessed time | I2: Time | J2: Placing | K2: Money Earned | L2: Predicted Time
D3: X | E3: 16 | F3: Wyatt Paul | G3: Tres Cups Of Sugar | I3: 15.8 | J3: 1D 1st | K3: 1554
D4: X | E4: 6 | F4: Josi St-Cyr | G4: Designed Ny Starlight | I4: 15.874 | K4: 1243.2
C5: A | D5: X | E5: 5 | F5: Patricia Aldridge | G5: Baymee | I5: 15.998 | K5: 1118.88
D6: X | E6: 25 | F6: Kelsey Treharne | G6: CID Highwind | I6: 16.053 | K6: 932.4
D7: X | E7: 8 | F7: Lacy Harmon | G7: Cant Judge My Socks | I7: 16.068 | K7: 745.92
E8: 2 | F8: Hallie Hanssen | G8: Liar Liar Sox On Fire | H8: 16.073 | I8: 16.102 | K8: 621.6
D9: X | E9: 22 | F9: Ashley Schafer | G9: Swoon To Be Famous | I9: 16.149
D10: X | E10: 13 | F10: Kelly Bruner | G10: KnuckleBuster | H10: 16 | I10: 16.185
D11: X | E11: 46 | F11: Kelsey Treharne | G11: Blazin Ta Betty | I11: 16.275
D12: X | E12: 45 | F12: Molli Montgomery | I12: 16.333
D13: X | E13: 4 | F13: Kelsey Treharne | G13: TS SpecialLeder PYC | I13: 16.404
D14: X | E14: 67 | F14: Kelsey Treharne | G14: RDC SeisShotsOfFame | I14: 16.451
D15: X | E15: 52 | F15: Ben Beall | G15: Chicksdashforhayes | I15: 16.48
D16: X | E16: 29 | F16: Lacy Billingsley | G16: Smokin The Fame | I16: 16.516
D17: X | E17: 10 | F17: Ben Beall | G17: Slick Swingin | I17: 16.532
D18: X | E18: 20 | F18: Jade Crago | G18: KG Fab Expectations | H18: 16.072 | I18: 16.579 | J18: 2D 1st | K18: 666
D19: X | E19: 3 | F19: Ryann Pedone | G19: Kiss My Tada | I19: 16.665 | K19: 532.8
E20: 63 | F20: Hallie Hanssen | G20: Sweet Kandy Kiss | H20: 16.142 | I20: 16.669 | K20: 479.52
D21: X | E21: 48 | F21: Christy Durfey | G21: Frenchmans Wowzer | H21: 16.479 | I21: 16.711 | K21: 399.6
D22: X | E22: 1 | F22: Ashley Schafer | G22: Makin Dark Money | I22: 16.742 | K22: 319.68
D23: X | E23: 7 | F23: Rachel Dahl | G23: Fair Share Of Charm | H23: 16.56 | I23: 16.743 | K23: 266.4
D24: X | E24: 50 | F24: Lacey Harmon | G24: Thunderflash | I24: 16.802
D25: X | E25: 9 | F25: Kelsey Gordon | G25: Frenchmans Tres Jet | H25: 16.534 | I25: 16.81
D26: X | E26: 39 | F26: Ryann Pedone | G26: HP Famous Fiesta | I26: 16.843
C27: A | D27: X | E27: 32 | F27: Kaylyn Smith | G27: Knailed It | H27: 16.4 | I27: 16.929
D28: X | E28: 26 | F28: Phillip Kenyon | G28: Fly As Queen | I28: 16.966
D29: X | E29: 44 | F29: Ashley Schafer | G29: French Streakof Fame | I29: 16.975
E30: 34 | F30: Madison Parks | G30: VF Stylin Stinson | H30: 16.144 | I30: 17.009
D31: X | E31: 17 | F31: Fran Denham | G31: KWMiPunkinFirewater | I31: 17.054
D32: X | E32: 43 | F32: Rachel Dahl | G32: Mr JB 1710 | H32: 16.432 | I32: 17.06
C33: A | D33: X | E33: 12 | F33: Megan Fowler | G33: Je Suis LePrix | I33: 17.17
D34: X | E34: 60 | F34: Ashley Schafer | G34: CFourVenomiss | I34: 17.171
D35: X | E35: 47 | F35: Jade Crago | G35: Bound To Ba Hayday | H35: 16.492 | I35: 17.19
D36: X | E36: 18 | F36: Ashley Nelson | G36: Reckless Roxie | I36: 17.197
D37: X | E37: 14 | F37: Kelli Acreman | G37: Slick N Easy Design | I37: 17.284
D38: X | E38: 15 | F38: Jesse Clare Bland | G38: Bet Captains | H38: 16.7 | I38: 17.297
D39: X | E39: 36 | F39: Jessica McRae | G39: A Tres Of Firewater | I39: 17.352
C40: S | D40: X | E40: 21 | F40: Jenny Zant | G40: Dashin Ike | H40: 16.765 | I40: 17.401
D41: X | E41: 27 | F41: Billie Ann Harmon | G41: PYC Pick Your FLing | H41: 16.63 | I41: 17.417
C42: A | D42: X | E42: 11 | F42: Molli Montgomery | G42: One Slick Fame | I42: 17.495
E43: 30 | F43: Hallie Hanssen | G43: Guyz Royal Keepsake | I43: 17.696
C44: A | D44: X | E44: 42 | F44: Susan Agnew | G44: Casino CASh | I44: 18.719
D45: X | E45: 41 | F45: Emma Wildeisen | G45: Guys Smooth Effort | I45: 20.406
D46: X | E46: 68 | F46: Bianca Smith | G46: Keep It Quick | H46: 16.315 | I46: nt
D47: X | E47: 19 | F47: Tibba Smith | G47: Little Swift Seeker | H47: 16.345 | I47: nt16.096
C48: A | D48: X | E48: 37 | F48: Patricia Aldridge | G48: Pritzi Stinsi 37 | I48: nt16.880
D49: X | E49: 33 | F49: Cambra Smith | G49: Mee Oh My Miss Molly | H49: 17.065 | I49: nt17.123
D50: X | E50: 28 | F50: Shelby Vick | G50: Vals Slick Design | H50: 16.348 | I50: nt17.262
C51: S | E51: 23 | F51: Susie Luschar | G51: Leos Smart Star | H51: 16.535 | I51: nt17.468
D52: X | E52: 24 | F52: Aimee Kay | G52: JA Firewater Rose | I52: scratch
D53: X | E53: 31 | F53: Rylee Shields | G53: Bug N The Girls | I53: scratch
E54: 35
E55: 38
E56: 40
E57: 49
E58: 51
E59: 53
E60: 54
E61: 55
E62: 56
E63: 57
E64: 58
E65: 59
E66: 61
E67: 62
E68: 64
E69: 65
E70: 66
E71: 69
E72: 70
E73: 71
E74: 72
E75: 73
E76: 74
E77: 75
E78: 76
E79: 77
E80: 78
E81: 79
E82: 80
E83: 81
E84: 82
E85: 83
E86: 84
E87: 85
E88: 86
E89: 87
E90: 88
E91: 89
E92: 90
E93: 91
E94: 92
E95: 93
E96: 94
E97: 95
E98: 96
E99: 97
E100: 98
E101: 99
E102: 100
E103: 101
E104: 102
E105: 103
E106: 104
E107: 105
E108: 106
E109: 107
E110: 108
E111: 109
E112: 110
E113: 111
E114: 112
E115: 113
E116: 114
E117: 115
E118: 116
E119: 117
E120: 118
E121: 119
E122: 120
E123: 121
E124: 122
E125: 123
E126: 124
E127: 125
E128: 126
E129: 127
E130: 128
E131: 129
E132: 130
E133: 131
E134: 132
E135: 133
E136: 134
E137: 135
E138: 136
E139: 137
E140: 138
E141: 139
E142: 140
E143: 141
E144: 142
E145: 143
E146: 144
E147: 145
E148: 146
E149: 147
E150: 148
E151: 149
E152: 150
E153: 151
E154: 152
E155: 153
E156: 154
E157: 155
E158: 156
E159: 157
E160: 158
E161: 159
E162: 160
E163: 161
E164: 162
E165: 163
E166: 164
E167: 165
E168: 166
E169: 167
E170: 168
E171: 169
E172: 170
E173: 171
E174: 172
E175: 173
E176: 174
E177: 175
E178: 176
E179: 177
E180: 178
E181: 179
E182: 180
E183: 181
E184: 182
E185: 183
E186: 184
E187: 185
E188: 186
E189: 187
E190: 188
E191: 189
E192: 190
E193: 191
E194: 192
E195: 193
E196: 194
E197: 195
E198: 196
E199: 197
E200: 198
... 102 more rows

Sheet 12 & Under (hidden)
A1: Futurity | B1: Der | C1: Age Inct. | D1: R/O | E1: Draw | F1: Rider Name | G1: Horse Name | H1: Time | I1: Final Time | J1: Placing | K1: Money Earned
E33: 32
E34: 33
E35: 34
E36: 35
E37: 36
E38: 37
E39: 38
E40: 39
E41: 40
E42: 41
E43: 42
E44: 43
E45: 44
E46: 45
E47: 46
E48: 47
E49: 48
E50: 49
E51: 50
E52: 51
E53: 52
E54: 53
E55: 54
E56: 55
E57: 56
E58: 57
E59: 58
E60: 59
E61: 60
E62: 61
E63: 62
E64: 63
E65: 64
E66: 65
E67: 66
E68: 67
E69: 68
E70: 69
E71: 70
E72: 71
E73: 72
E74: 73
E75: 74
E76: 75
E77: 76
E78: 77
E79: 78
E80: 79
E81: 80
E82: 81
E83: 82
E84: 83
E85: 84
E86: 85
E87: 86
E88: 87
E89: 88
E90: 89
E91: 90
E92: 91
E93: 92
E94: 93
E95: 94
E96: 95
E97: 96
E98: 97
E99: 98
E100: 99
E101: 100
E102: 101
E103: 102
E104: 103
E105: 104
E106: 105
E107: 106
E108: 107
E109: 108
E110: 109
E111: 110
E112: 111
E113: 112
E114: 113
E115: 114
E116: 115
E117: 116
E118: 117
E119: 118
E120: 119
E121: 120
E122: 121
E123: 122
E124: 123
E125: 124
E126: 125
E127: 126
E128: 127
E129: 128
E130: 129
E131: 130
E132: 131
E133: 132
E134: 133
E135: 134
E136: 135
E137: 136
E138: 137
E139: 138
E140: 139
E141: 140
E142: 141
E143: 142
E144: 143
E145: 144
E146: 145
E147: 146
E148: 147
E149: 148
E150: 149
E151: 150
E152: 151
E153: 152
E154: 153
E155: 154
E156: 155
E157: 156
E158: 157
E159: 158
E160: 159
E161: 160
E162: 161
E163: 162
E164: 163
E165: 164
E166: 165
E167: 166
E168: 167
E169: 168
E170: 169
E171: 170
E172: 171
E173: 172
E174: 173
E175: 174
E176: 175
E177: 176
E178: 177
E179: 178
E180: 179
E181: 180
E182: 181
E183: 182
E184: 183
E185: 184
E186: 185
E187: 186
E188: 187
E189: 188
E190: 189
E191: 190
E192: 191
E193: 192
E194: 193
E195: 194
E196: 195
E197: 196
E198: 197
E199: 198
E200: 199
E201: 200
E202: 201
E203: 202
E204: 203
E205: 204
E206: 205
E207: 206
E208: 207
E209: 208
E210: 209
E211: 210
E212: 211
E213: 212
E214: 213
E215: 214
E216: 215
E217: 216
E218: 217
E219: 218
E220: 219
E221: 220
E222: 221
E223: 222
E224: 223
E225: 224
E226: 225
E227: 226
E228: 227
E229: 228
E230: 229
E231: 230
... 70 more rows

Sheet Future Champs
A1: Future Champs
A2: Draw | B2: Rider Name | C2: Horse Name | D2: Time | E2: Placing | F2: Money Earned
A3: 1 | B3: Coralee Williams
A4: 2 | B4: Bryson Rawson | C4: Mack Daddy
A5: 3 | B5: Hadley Donegan | C5: Fanny
A6: 4 | B6: Mary Margaret Bland | C6: Grace
A7: 5
A8: 6 | B8: Wyatt Williams
A9: 7
A10: 8
A11: 9
A12: 10
A13: 11
A14: 12
A15: 13
A16: 14
A17: 15
A18: 16
A19: 17
A20: 18
A21: 19
A22: 20
A23: 21
A24: 22
A25: 23

Sheet BFA 2D Payout (hidden)
A1: BFA 2D Payout
A2: Entry Fee | B2: # Entries | C2: % Payback | D2: Added $ | E2: Total Payout | F2: Each Go
A3: 25 | B3: 19 | C3: 0.8 | D3: 200 | E3: =(A3*$C$3)*B3+D3 -> 580 | F3: 0.3
F4: =$E$3*$F$3 -> 174
A5: $5,000-7,500 Pays 5 Places 4 to 1D 1 to 2D
A6: Placings | B6: 1D | D6: 2D
A7: 1st | B7: =($F$4*$C$7) -> 57.42 | C7: 0.33 | D7: =$F$4*$E$7 -> 12.18 | E7: 0.07
A8: 2nd | B8: =$F$4*$C$8 -> 46.98 | C8: 0.27
A9: 3rd | B9: =$F$4*$C$9 -> 34.8 | C9: 0.2
A10: 4th | B10: =$F$4*$C$10 -> 22.62 | C10: 0.13
A11: Totals | B11: =SUM(B7:B10) -> 161.82 | D11: =SUM(D7:D10) -> 12.18 | E11: =(C7+C8+C9+C10+E7+E8) -> 1
A12: =B11+D11 -> 174
A13: $7,501 - 10,000 Pays 6 Places 4 to 1D, 2 to 2D
A14: Placings | B14: 1D | D14: 2D
A15: 1st | B15: =$F$4*$C$15 -> 50.46 | C15: 0.29 | D15: =$F$4*$E$15 -> 15.66 | E15: 0.09
A16: 2nd | B16: =+$F$4*$C$16 -> 41.76 | C16: 0.24 | D16: =F4*E16 -> 8.7 | E16: 0.05
A17: 3rd | B17: =$F$4*$C$17 -> 33.06 | C17: 0.19
A18: 4th | B18: =$F$4*$C$18 -> 24.36 | C18: 0.14
A19: Totals | B19: =SUM(B15:B18) -> 149.64 | D19: =D16+D15 -> 24.36 | E19: =SUM(C15+C16+C17+C18+E15+E16) -> 1
A20: =D19+B19 -> 174
A21: $10,001 - $15,000 Payes 8 Places 5 to 1D, 3 to 2D
A22: Placings | B22: 1D | D22: 2D
A23: 1st | B23: =F4*C23 -> 41.76 | C23: 0.24 | D23: =F4*E23 -> 12.18 | E23: 0.07
A24: 2nd | B24: =F4*C24 -> 34.8 | C24: 0.2 | D24: =F4*E24 -> 8.7 | E24: 0.05
A25: 3rd | B25: =F4*C25 -> 29.58 | C25: 0.17 | D25: =F4*E25 -> 6.96 | E25: 0.04
A26: 4th | B26: =F4*C26 -> 22.62 | C26: 0.13
A27: 5th | B27: =F4*C27 -> 17.4 | C27: 0.1
A28: Totals | B28: =SUM(B23:B27) -> 146.16 | D28: =SUM(D23:D27) -> 27.84 | E28: =C23+C24+C25+C26+C27+E23+E24+E25 -> 1
A29: =B28+D28 -> 174
A30: $15,001 - $25,000 Payes 11 Places 7 to 1D, 4 to 2D
A31: Placings | B31: 1D | D31: 2D
A32: 1st | B32: =$F$4*C32 -> 36.54 | C32: 0.21 | D32: =$F$4*E32 -> 8.7 | E32: 0.05
A33: 2nd | B33: =$F$4*C33 -> 31.32 | C33: 0.18 | D33: =$F$4*E33 -> 6.96 | E33: 0.04
A34: 3rd | B34: 26.1 | C34: 0.15 | D34: 5.22 | E34: 0.03
A35: 4th | B35: 19.14 | C35: 0.11 | D35: 3.48 | E35: 0.02
A36: 5th | B36: 13.92 | C36: 0.08
A37: 6th | B37: 12.18 | C37: 0.07
A38: 7th | B38: 10.44 | C38: 0.06
A39: Totals | B39: =SUM(B32:B38) -> 149.64 | D39: =SUM(D32:D38) -> 24.36 | E39: =C32+C33+C34+C35+C36+C37+C38+E32+E33+E34+E35 -> 1
A40: =SUM(B39+D39) -> 174
A41: $25,001 - $35,000 Payes 12 Places 8 to 1D, 4 to 2D
A42: Placings | B42: 1D | D42: 2D
A43: 1st | B43: =$F$4*C43 -> 33.06 | C43: 0.19 | D43: =$F$4*E43 -> 8.7 | E43: 0.05
A44: 2nd | B44: =$F$4*C44 -> 26.1 | C44: 0.15 | D44: =$F$4*E44 -> 6.96 | E44: 0.04
A45: 3rd | B45: 20.88 | C45: 0.12 | D45: 5.22 | E45: 0.03
A46: 4th | B46: 17.4 | C46: 0.1 | D46: 3.48 | E46: 0.02
A47: 5th | B47: 15.66 | C47: 0.09
A48: 6th | B48: 13.92 | C48: 0.08
A49: 7th | B49: 12.18 | C49: 0.07
A50: 8th | B50: 10.44 | C50: 0.06
A51: Totals | B51: =SUM(B43:B50) -> 149.64 | D51: =SUM(D43:D46) -> 24.36 | E51: =C43+C44+C45+C46+C47+C48+C49+C50+E43+E44+E45+E46 -> 1
A52: =D51+B51 -> 174

Sheet 2D Payout
A1: 2D Payout
A2: Entry Fee | B2: # Entries | C2: % Payback | D2: Added $ | E2: Total Payout
A3: 150 | B3: 33 | C3: 0.8 | D3: 2000 | E3: =(A3*$C$3)*B3+D3 -> 5960
A5: % in each D | B5: 0.7 | C5: 0.3 | D5: Total % = | E5: =SUM(B5:C5) -> 1
B6: 1D | C6: 2D
B7: =(($A$3*$B$3*$C$3*$B$5)+($D$3*$B$5)) -> 4172 | C7: =(($A$3*$B$3*$C$3*$C$5)+($D$3*$C$5)) -> 1788
A8: Totals | B8: =SUM(B7) -> 4172 | C8: =SUM(C7) -> 1788 | D8: =SUM(B8:C8) -> 5960
A10: For 1-7 riders 1 place
A11: Placings | B11: 1D | C11: 2D
A12: 1st | B12: =$B$7*$E$12 -> 4172 | C12: =$C$7*$E$5 -> 1788 | D12: è | E12: 1
A13: Totals | B13: =SUM(B12:B12) -> 4172 | C13: =SUM(C12:C12) -> 1788 | D13: =SUM(B13:C13) -> 5960 | E13: =SUM(E12) -> 1
A15: For 8-11 riders 2 places
A16: Placings | B16: 1D | C16: 2D
A17: 1st | B17: =$B$7*$E$17 -> 2503.2 | C17: =$C$7*$E$17 -> 1072.8 | D17: è | E17: 0.6
A18: 2nd | B18: =$B$7*$E$18 -> 1668.8 | C18: 50 | D18: è | E18: 0.4
A19: Totals | B19: =SUM(B17:B18) -> 4172 | C19: =SUM(C17:C18) -> 1122.8 | D19: =SUM(B19:C19) -> 5294.8 | E19: =SUM(E17:E18) -> 1
A21: For 12-15 riders 3 places
A22: Placings | B22: 1D | C22: 2D
A23: 1st | B23: =$B$7*$E$23 -> 2086 | C23: =$C$7*$E$23 -> 894 | D23: è | E23: 0.5
A24: 2nd | B24: =$B$7*$E$24 -> 1251.6 | C24: =$C$7*$E$24 -> 536.4 | D24: è | E24: 0.3
A25: 3rd | B25: =$B$7*$E$25 -> 834.4 | C25: =$C$7*$E$25 -> 357.6 | D25: è | E25: 0.2
A26: Totals | B26: =SUM(B23:B25) -> 4172 | C26: =SUM(C23:C25) -> 1788 | D26: =SUM(B26:C26) -> 5960 | E26: =SUM(E23:E25) -> 1
A28: For 16-19 riders 4 places
A29: Placings | B29: 1D | C29: 2D
A30: 1st | B30: =$B$7*$E$30 -> 1668.8 | C30: =$C$7*$E$30 -> 715.2 | D30: è | E30: 0.4
A31: 2nd | B31: =$B$7*$E$31 -> 1251.6 | C31: =$C$7*$E$31 -> 536.4 | D31: è | E31: 0.3
A32: 3rd | B32: =$B$7*$E$32 -> 834.4 | C32: =$C$7*$E$32 -> 357.6 | D32: è | E32: 0.2
A33: 4th | B33: =$B$7*$E$33 -> 417.2 | C33: =$C$7*$E$33 -> 178.8 | D33: è | E33: 0.1
A34: Totals | B34: =SUM(B30:B33) -> 4172 | C34: =SUM(C30:C33) -> 1788 | D34: =SUM(B34:C34) -> 5960 | E34: =SUM(E30:E33) -> 1
A36: For 20-23 riders 5 places
A37: Placings | B37: 1D | C37: 2D
A38: 1st | B38: =$B$7*$E$38 -> 1251.6 | C38: =$C$7*$E$38 -> 536.4 | D38: è | E38: 0.3
A39: 2nd | B39: =$B$7*$E$39 -> 1043 | C39: =$C$7*$E$39 -> 447 | D39: è | E39: 0.25
A40: 3rd | B40: =$B$7*$E$40 -> 834.4 | C40: =$C$7*$E$40 -> 357.6 | D40: è | E40: 0.2
A41: 4th | B41: =$B$7*$E$41 -> 625.8 | C41: =$C$7*$E$41 -> 268.2 | D41: è | E41: 0.15
A42: 5th | B42: =$B$7*$E$42 -> 417.2 | C42: =$C$7*$E$42 -> 178.8 | D42: è | E42: 0.1
A43: Totals | B43: =SUM(B38:B42) -> 4172 | C43: =SUM(C38:C42) -> 1788 | D43: =SUM(B43:C43) -> 5960 | E43: =SUM(E38:E42) -> 1
A45: For 24-27 riders 6 places
A46: Placings | B46: 1D | C46: 2D
A47: 1st | B47: =$B$7*$E$47 -> 1043 | C47: =$C$7*$E$47 -> 447 | D47: è | E47: 0.25
A48: 2nd | B48: =$B$7*$E$48 -> 834.4 | C48: =$C$7*$E$48 -> 357.6 | D48: è | E48: 0.2
A49: 3rd | B49: =$B$7*$E$49 -> 750.96 | C49: =$C$7*$E$49 -> 321.84 | D49: è | E49: 0.18
A50: 4th | B50: =$B$7*$E$50 -> 625.8 | C50: =$C$7*$E$50 -> 268.2 | D50: è | E50: 0.15
A51: 5th | B51: =$B$7*$E$51 -> 500.64 | C51: =$C$7*$E$51 -> 214.56 | D51: è | E51: 0.12
A52: 6th | B52: =$B$7*$E$52 -> 417.2 | C52: =$C$7*$E$52 -> 178.8 | D52: è | E52: 0.1
A53: Totals | B53: =SUM(B47:B52) -> 4172 | C53: =SUM(C47:C52) -> 1788 | D53: =SUM(B53:C53) -> 5960 | E53: =SUM(E47:E52) -> 1
A55: For 28-31 riders 7 places
A56: Placings | B56: 1D | C56: 2D
A57: 1st | B57: =$B$7*$E$57 -> 917.84 | C57: =$C$7*$E$57 -> 393.36 | D57: è | E57: 0.22
A58: 2nd | B58: =$B$7*$E$58 -> 750.96 | C58: =$C$7*$E$58 -> 321.84 | D58: è | E58: 0.18
A59: 3rd | B59: =$B$7*$E$59 -> 667.52 | C59: =$C$7*$E$59 -> 286.08 | D59: è | E59: 0.16
A60: 4th | B60: =$B$7*$E$60 -> 584.08 | C60: =$C$7*$E$60 -> 250.32 | D60: è | E60: 0.14
A61: 5th | B61: =$B$7*$E$61 -> 500.64 | C61: =$C$7*$E$61 -> 214.56 | D61: è | E61: 0.12
A62: 6th | B62: =$B$7*$E$62 -> 417.2 | C62: =$C$7*$E$62 -> 178.8 | D62: è | E62: 0.1
A63: 7th | B63: =$B$7*$E$63 -> 333.76 | C63: =$C$7*$E$63 -> 143.04 | D63: è | E63: 0.08
A64: Totals | B64: =SUM(B57:B63) -> 4172 | C64: =SUM(C57:C63) -> 1788 | D64: =SUM(B64:C64) -> 5960 | E64: =SUM(E57:E63) -> 1
A66: For 32 or more riders 8 places
A67: Placings | B67: 1D | C67: 2D
A68: 1st | B68: =$B$7*$E$68 -> 959.56 | C68: =$C$7*$E$68 -> 411.24 | D68: è | E68: 0.23
A69: 2nd | B69: =$B$7*$E$69 -> 834.4 | C69: =$C$7*$E$69 -> 357.6 | D69: è | E69: 0.2
A70: 3rd | B70: =$B$7*$E$70 -> 709.24 | C70: =$C$7*$E$70 -> 303.96 | D70: è | E70: 0.17
A71: 4th | B71: =$B$7*$E$71 -> 584.08 | C71: =$C$7*$E$71 -> 250.32 | D71: è | E71: 0.14
A72: 5th | B72: =$B$7*$E$72 -> 458.92 | C72: =$C$7*$E$72 -> 196.68 | D72: è | E72: 0.11
A73: 6th | B73: =$B$7*$E$73 -> 333.76 | C73: =$C$7*$E$73 -> 143.04 | D73: è | E73: 0.08
A74: 7th | B74: =$B$7*$E$74 -> 208.6 | C74: =$C$7*$E$74 -> 89.4 | D74: è | E74: 0.05
A75: 8th | B75: =$B$7*$E$75 -> 83.44 | C75: =$C$7*$E$75 -> 35.76 | D75: è | E75: 0.02
A76: Totals | B76: =SUM(B68:B75) -> 4172 | C76: =SUM(C68:C75) -> 1788 | D76: =SUM(B76:C76) -> 5960 | E76: =SUM(E68:E75) -> 1

Sheet 3D Payout (hidden)
A1: 3D Payout
A2: Entry Fee | B2: # Entries | C2: % Payback | D2: $ From Entry | E2: Added $ | F2: Total Payout
A3: 10 | B3: 3 | C3: 0.8 | D3: =$A$3*$C$3*$B$3 -> 24 | F3: =$D$3+$E$3 -> 24
A5: % in each D | B5: 0.5 | C5: 0.3 | D5: 0.2 | E5: Total % = | F5: =SUM(B5:D5) -> 1
B6: 1D | C6: 2D | D6: 3D
B7: =(($A$3*$B$3*$C$3*$B$5)+($E$3*$B$5)) -> 12 | C7: =(($A$3*$B$3*$C$3*$C$5)+($E$3*$C$5)) -> 7.2 | D7: =(($A$3*$B$3*$C$3*$D$5)+($E$3*$D$5)) -> 4.8
A8: Totals | B8: =SUM(B7) -> 12 | C8: =SUM(C7) -> 7.2 | D8: 4.8 | E8: =SUM(B8:D8) -> 24
A10: For 1-10 riders 1 place
A11: Placings | B11: 1D | C11: 2D | D11: 3D
A12: 1st | B12: =$B$7*$F$12 -> 12 | C12: =$C$7*$F$12 -> 7.2 | D12: =$D$7*$F$12 -> 4.8 | E12: è | F12: 1
A13: Totals | B13: =SUM(B12:B12) -> 12 | C13: =SUM(C12:C12) -> 7.2 | D13: =SUM(D12:D12) -> 4.8 | E13: =SUM(B13:D13) -> 24 | F13: =SUM(F12) -> 1
A15: For 11-15 riders 2 places
A16: Placings | B16: 1D | C16: 2D | D16: 3D
A17: 1st | B17: =$B$7*$F$17 -> 7.2 | C17: =$C$7*$F$17 -> 4.32 | D17: =$D$7*$F$17 -> 2.88 | E17: è | F17: 0.6
A18: 2nd | B18: =$B$7*$F$18 -> 4.8 | C18: =$C$7*$F$18 -> 2.88 | D18: =$D$7*$F$18 -> 1.92 | E18: è | F18: 0.4
A19: Totals | B19: =SUM(B17:B18) -> 12 | C19: =SUM(C17:C18) -> 7.2 | D19: =SUM(D17:D18) -> 4.8 | E19: =SUM(B19:D19) -> 24 | F19: =SUM(F17:F18) -> 1
A21: For 16-30 riders 3 places
A22: Placings | B22: 1D | C22: 2D | D22: 3D
A23: 1st | B23: =$B$7*$F$23 -> 6 | C23: =$C$7*$F$23 -> 3.6 | D23: =$D$7*$F$23 -> 2.4 | E23: è | F23: 0.5
A24: 2nd | B24: =$B$7*$F$24 -> 3.6 | C24: =$C$7*$F$24 -> 2.16 | D24: =$D$7*$F$24 -> 1.44 | E24: è | F24: 0.3
A25: 3rd | B25: =$B$7*$F$25 -> 2.4 | C25: =$C$7*$F$25 -> 1.44 | D25: =$D$7*$F$25 -> 0.96 | E25: è | F25: 0.2
A26: Totals | B26: =SUM(B23:B25) -> 12 | C26: =SUM(C23:C25) -> 7.2 | D26: =SUM(D22:D25) -> 4.8 | E26: =SUM(B26:D26) -> 24 | F26: =SUM(F23:F25) -> 1
A28: For 31-60 riders 4 places
A29: Placings | B29: 1D | C29: 2D | D29: 3D
A30: 1st | B30: =$B$7*$F$30 -> 5.04 | C30: =$C$7*$F$30 -> 3.024 | D30: =$D$7*$F$30 -> 2.016 | E30: è | F30: 0.42
A31: 2nd | B31: =$B$7*$F$31 -> 3.48 | C31: =$C$7*$F$31 -> 2.088 | D31: =$D$7*$F$31 -> 1.392 | E31: è | F31: 0.29
A32: 3rd | B32: =$B$7*$F$32 -> 2.28 | C32: =$C$7*$F$32 -> 1.368 | D32: =$D$7*$F$32 -> 0.912 | E32: è | F32: 0.19
A33: 4th | B33: =$B$7*$F$33 -> 1.2 | C33: =$C$7*$F$33 -> 0.72 | D33: =$D$7*$F$33 -> 0.48 | E33: è | F33: 0.1
A34: Totals | B34: =SUM(B30:B33) -> 12 | C34: =SUM(C30:C33) -> 7.2 | D34: =SUM(D30:D33) -> 4.8 | E34: =SUM(B34:D34) -> 24 | F34: =SUM(F30:F33) -> 1
A36: For 61-90 riders 5 places
A37: Placings | B37: 1D | C37: 2D | D37: 3D
A38: 1st | B38: =$B$7*$F$38 -> 4.56 | C38: =$C$7*$F$38 -> 2.736 | D38: =$D$7*$F$38 -> 1.824 | E38: è | F38: 0.38
A39: 2nd | B39: =$B$7*$F$39 -> 3.36 | C39: =$C$7*$F$39 -> 2.016 | D39: =$D$7*$F$39 -> 1.344 | E39: è | F39: 0.28
A40: 3rd | B40: =$B$7*$F$40 -> 2.16 | C40: =$C$7*$F$40 -> 1.296 | D40: =$D$7*$F$40 -> 0.864 | E40: è | F40: 0.18
A41: 4th | B41: =$B$7*$F$41 -> 1.2 | C41: =$C$7*$F$41 -> 0.72 | D41: =$D$7*$F$41 -> 0.48 | E41: è | F41: 0.1
A42: 5th | B42: =$B$7*$F$42 -> 0.72 | C42: =$C$7*$F$42 -> 0.432 | D42: =$D$7*$F$42 -> 0.288 | E42: è | F42: 0.06
A43: Totals | B43: =SUM(B38:B42) -> 12 | C43: =SUM(C38:C42) -> 7.2 | D43: =SUM(D38:D42) -> 4.8 | E43: =SUM(B43:D43) -> 24 | F43: =SUM(F38:F42) -> 1
A45: For 91-120 riders 6 places
A46: Placings | B46: 1D | C46: 2D | D46: 3D
A47: 1st | B47: =$B$7*$F$47 -> 4.32 | C47: =$C$7*$F$47 -> 2.592 | D47: =$D$7*$F$47 -> 1.728 | E47: è | F47: 0.36
A48: 2nd | B48: =$B$7*$F$48 -> 3.12 | C48: =$C$7*$F$48 -> 1.872 | D48: =$D$7*$F$48 -> 1.248 | E48: è | F48: 0.26
A49: 3rd | B49: =$B$7*$F$49 -> 1.92 | C49: =$C$7*$F$49 -> 1.152 | D49: =$D$7*$F$49 -> 0.768 | E49: è | F49: 0.16
A50: 4th | B50: =$B$7*$F$50 -> 1.2 | C50: =$C$7*$F$50 -> 0.72 | D50: =$D$7*$F$50 -> 0.48 | E50: è | F50: 0.1
A51: 5th | B51: =$B$7*$F$51 -> 0.84 | C51: =$C$7*$F$51 -> 0.504 | D51: =$D$7*$F$51 -> 0.336 | E51: è | F51: 0.07
A52: 6th | B52: =$B$7*$F$52 -> 0.6 | C52: =$C$7*$F$52 -> 0.36 | D52: =$D$7*$F$52 -> 0.24 | E52: è | F52: 0.05
A53: Totals | B53: =SUM(B47:B52) -> 12 | C53: =SUM(C47:C52) -> 7.2 | D53: =SUM(D47:D52) -> 4.8 | E53: =SUM(B53:D53) -> 24 | F53: =SUM(F47:F52) -> 1
A55: For 121-200 riders 7 places
A56: Placings | B56: 1D | C56: 2D | D56: 3D
A57: 1st | B57: =$B$7*$F$57 -> 3.12 | C57: =$C$7*$F$57 -> 1.872 | D57: =$D$7*$F$57 -> 1.248 | E57: è | F57: 0.26
A58: 2nd | B58: =$B$7*$F$58 -> 2.4 | C58: =$C$7*$F$58 -> 1.44 | D58: =$D$7*$F$58 -> 0.96 | E58: è | F58: 0.2
A59: 3rd | B59: =$B$7*$F$59 -> 1.8 | C59: =$C$7*$F$59 -> 1.08 | D59: =$D$7*$F$59 -> 0.72 | E59: è | F59: 0.15
A60: 4th | B60: =$B$7*$F$60 -> 1.44 | C60: =$C$7*$F$60 -> 0.864 | D60: =$D$7*$F$60 -> 0.576 | E60: è | F60: 0.12
A61: 5th | B61: =$B$7*$F$61 -> 1.2 | C61: =$C$7*$F$61 -> 0.72 | D61: =$D$7*$F$61 -> 0.48 | E61: è | F61: 0.1
A62: 6th | B62: =$B$7*$F$62 -> 1.08 | C62: =$C$7*$F$62 -> 0.648 | D62: =$D$7*$F$62 -> 0.432 | E62: è | F62: 0.09
A63: 7th | B63: =$B$7*$F$63 -> 0.96 | C63: =$C$7*$F$63 -> 0.576 | D63: =$D$7*$F$63 -> 0.384 | E63: è | F63: 0.08
A64: Totals | B64: =SUM(B57:B63) -> 12 | C64: =SUM(C57:C63) -> 7.2 | D64: =SUM(D57:D63) -> 4.8 | E64: =SUM(B64:D64) -> 24 | F64: =SUM(F57:F63) -> 1
A66: For 201 or more riders 8 places
A67: Placings | B67: 1D | C67: 2D | D67: 3D
A68: 1st | B68: =$B$7*0.24 -> 2.88 | C68: =$C$7*0.24 -> 1.728 | D68: =$D$7*0.24 -> 1.152 | E68: è | F68: 0.24
A69: 2nd | B69: =$B$7*0.18 -> 2.16 | C69: =$C$7*0.18 -> 1.296 | D69: =$D$7*0.18 -> 0.864 | E69: è | F69: 0.18
A70: 3rd | B70: =$B$7*0.15 -> 1.8 | C70: =$C$7*0.15 -> 1.08 | D70: =$D$7*0.15 -> 0.72 | E70: è | F70: 0.15
A71: 4th | B71: =$B$7*0.12 -> 1.44 | C71: =$C$7*0.12 -> 0.864 | D71: =$D$7*0.12 -> 0.576 | E71: è | F71: 0.12
A72: 5th | B72: =$B$7*0.1 -> 1.2 | C72: =$C$7*0.1 -> 0.72 | D72: =$D$7*0.1 -> 0.48 | E72: è | F72: 0.1
A73: 6th | B73: =$B$7*0.08 -> 0.96 | C73: =$C$7*0.08 -> 0.576 | D73: =$D$7*0.08 -> 0.384 | E73: è | F73: 0.08
A74: 7th | B74: =$B$7*0.07 -> 0.84 | C74: =$C$7*0.07 -> 0.504 | D74: =$D$7*0.07 -> 0.336 | E74: è | F74: 0.07
A75: 8th | B75: =$B$7*0.06 -> 0.72 | C75: =$C$7*0.06 -> 0.432 | D75: =$D$7*0.06 -> 0.288 | E75: è | F75: 0.06
A76: Totals | B76: =SUM(B68:B75) -> 12 | C76: =SUM(C68:C75) -> 7.2 | D76: =SUM(D68:D75) -> 4.8 | E76: =SUM(B76:D76) -> 24 | F76: =SUM(F68:F75) -> 1

Sheet 4D Payout BBR (hidden)
A1: 4D Payout BBR
A2: Entry Fee | B2: # Entries | C2: % Payback | D2: $ From Entry | E2: Added $ | F2: Total Payout
A3: 40 | B3: 200 | C3: 0.8 | D3: =$A$3*$C$3*$B$3 -> 6400 | E3: 1100 | F3: =($A$3*$C$3)*$B$3+$E$3 -> 7500
A5: % in each D | B5: 0.35 | C5: 0.3 | D5: 0.2 | E5: 0.15 | F5: Total % Payout | G5: =SUM(B5:E5) -> 1
B6: 1D | C6: 2D | D6: 3D | E6: 4D
B7: =(($A$3*$B$3*$C$3*0.35)+($E$3/4)) -> 2515 | C7: =(($A$3*$B$3*$C$3*0.3)+($E$3/4)) -> 2195 | D7: =(($A$3*$B$3*$C$3*0.2)+($E$3/4)) -> 1555 | E7: =(($A$3*$B$3*$C$3*0.15)+($E$3/4)) -> 1235
A8: Totals | B8: =SUM(B7) -> 2515 | C8: =SUM(C7) -> 2195 | D8: 1555 | E8: 1235 | F8: =SUM(B8:E8) -> 7500
A10: For 1-16 riders 1 place
A11: Placings | B11: 1D | C11: 2D | D11: 3D | E11: 4D
A12: 1st | B12: =$B$7*$G$12 -> 2515 | C12: =$C$7*$G$12 -> 2195 | D12: =$D$7*$G$12 -> 1555 | E12: =$E$7*$G$12 -> 1235 | F12: è | G12: 1
A13: Totals | B13: =SUM(B12:B12) -> 2515 | C13: =SUM(C12:C12) -> 2195 | D13: =SUM(D12:D12) -> 1555 | E13: =SUM(E12:E12) -> 1235 | F13: =SUM(B13:E13) -> 7500 | G13: =SUM(G12) -> 1
A15: For 17-33 riders 2 places
A16: Placings | B16: 1D | C16: 2D | D16: 3D | E16: 4D
A17: 1st | B17: =$B$7*$G$17 -> 1509 | C17: =$C$7*$G$17 -> 1317 | D17: =$D$7*$G$17 -> 933 | E17: =$E$7*$G$17 -> 741 | F17: è | G17: 0.6
A18: 2nd | B18: =$B$7*$G$18 -> 1006 | C18: =$C$7*$G$18 -> 878 | D18: =$D$7*$G$18 -> 622 | E18: =$E$7*$G$18 -> 494 | F18: è | G18: 0.4
A19: Totals | B19: =SUM(B17:B18) -> 2515 | C19: =SUM(C17:C18) -> 2195 | D19: =SUM(D17:D18) -> 1555 | E19: =SUM(E17:E18) -> 1235 | F19: =SUM(B19:E19) -> 7500 | G19: =SUM(G17:G18) -> 1
A21: For 34-66 riders 3 places
A22: Placings | B22: 1D | C22: 2D | D22: 3D | E22: 4D
A23: 1st | B23: =$B$7*$G$23 -> 1257.5 | C23: =$C$7*$G$23 -> 1097.5 | D23: =$D$7*$G$23 -> 777.5 | E23: =$E$7*$G$23 -> 617.5 | F23: è | G23: 0.5
A24: 2nd | B24: =$B$7*$G$24 -> 754.5 | C24: =$C$7*$G$24 -> 658.5 | D24: =$D$7*$G$24 -> 466.5 | E24: =$E$7*$G$24 -> 370.5 | F24: è | G24: 0.3
A25: 3rd | B25: =$B$7*$G$25 -> 503 | C25: =$C$7*$G$25 -> 439 | D25: =$D$7*$G$25 -> 311 | E25: =$E$7*$G$25 -> 247 | F25: è | G25: 0.2
A26: Totals | B26: =SUM(B23:B25) -> 2515 | C26: =SUM(C23:C25) -> 2195 | D26: =SUM(D23:D25) -> 1555 | E26: =SUM(E23:E25) -> 1235 | F26: =SUM(B26:E26) -> 7500 | G26: =SUM(G23:G25) -> 1
A28: For 97-95 riders 4 places
A29: Placings | B29: 1D | C29: 2D | D29: 3D | E29: 4D
A30: 1st | B30: =$B$7*$G$30 -> 1006 | C30: =$C$7*$G$30 -> 878 | D30: =$D$7*$G$30 -> 622 | E30: =$E$7*$G$30 -> 494 | F30: è | G30: 0.4
A31: 2nd | B31: =$B$7*$G$31 -> 754.5 | C31: =$C$7*$G$31 -> 658.5 | D31: =$D$7*$G$31 -> 466.5 | E31: =$E$7*$G$31 -> 370.5 | F31: è | G31: 0.3
A32: 3rd | B32: =$B$7*$G$32 -> 503 | C32: =$C$7*$G$32 -> 439 | D32: =$D$7*$G$32 -> 311 | E32: =$E$7*$G$32 -> 247 | F32: è | G32: 0.2
A33: 4th | B33: =$B$7*$G$33 -> 251.5 | C33: =$C$7*$G$33 -> 219.5 | D33: =$D$7*$G$33 -> 155.5 | E33: =$E$7*$G$33 -> 123.5 | F33: è | G33: 0.1
A34: Totals | B34: =SUM(B30:B33) -> 2515 | C34: =SUM(C30:C33) -> 2195 | D34: =SUM(D30:D33) -> 1555 | E34: =SUM(E30:E33) -> 1235 | F34: =SUM(B34:E34) -> 7500 | G34: =SUM(G30:G33) -> 1
A36: For 96-133 riders 5 places
A37: Placings | B37: 1D | C37: 2D | D37: 3D | E37: 4D
A38: 1st | B38: =$B$7*$G$38 -> 829.95 | C38: =$C$7*$G$38 -> 724.35 | D38: =$D$7*G38 -> 513.15 | E38: =$E$7*$G$38 -> 407.55 | F38: è | G38: 0.33
A39: 2nd | B39: =$B$7*$G$39 -> 679.05 | C39: =$C$7*$G$39 -> 592.65 | D39: =$D$7*$G$39 -> 419.85 | E39: =$E$7*$G$39 -> 333.45 | F39: è | G39: 0.27
A40: 3rd | B40: =$B$7*$G$40 -> 503 | C40: =$C$7*$G$40 -> 439 | D40: =$D$7*$G$40 -> 311 | E40: =$E$7*$G$40 -> 247 | F40: è | G40: 0.2
A41: 4th | B41: =$B$7*$G$41 -> 326.95 | C41: =$C$7*$G$41 -> 285.35 | D41: =$D$7*$G$41 -> 202.15 | E41: =$E$7*$G$41 -> 160.55 | F41: è | G41: 0.13
A42: 5th | B42: =$B$7*$G$42 -> 176.05 | C42: =$C$7*$G$42 -> 153.65 | D42: =$D$7*$G$42 -> 108.85 | E42: =$E$7*$G$42 -> 86.45 | F42: è | G42: 0.07
A43: Totals | B43: =SUM(B38:B42) -> 2515 | C43: =SUM(C38:C42) -> 2195 | D43: =SUM(D38:D42) -> 1555 | E43: =SUM(E38:E42) -> 1235 | F43: =SUM(B43:E43) -> 7500 | G43: =SUM(G38:G42) -> 1
A45: For 134-166 riders 6 places
A46: Placings | B46: 1D | C46: 2D | D46: 3D | E46: 4D
A47: 1st | B47: =$B$7*$G$47 -> 729.35 | C47: =$C$7*$G$47 -> 636.55 | D47: =$D$7*$G$47 -> 450.95 | E47: =$E$7*$G$47 -> 358.15 | F47: è | G47: 0.29
A48: 2nd | B48: =$B$7*$G$48 -> 603.6 | C48: =$C$7*$G$48 -> 526.8 | D48: =$D$7*$G$48 -> 373.2 | E48: =$E$7*$G$48 -> 296.4 | F48: è | G48: 0.24
A49: 3rd | B49: =$B$7*$G$49 -> 477.85 | C49: =$C$7*$G$49 -> 417.05 | D49: =$D$7*$G$49 -> 295.45 | E49: =$E$7*$G$49 -> 234.65 | F49: è | G49: 0.19
A50: 4th | B50: =$B$7*$G$50 -> 352.1 | C50: =$C$7*$G$50 -> 307.3 | D50: =$D$7*$G$50 -> 217.7 | E50: =$E$7*$G$50 -> 172.9 | F50: è | G50: 0.14
A51: 5th | B51: =$B$7*$G$51 -> 226.35 | C51: =$C$7*$G$51 -> 197.55 | D51: =$D$7*$G$51 -> 139.95 | E51: =$E$7*$G$51 -> 111.15 | F51: è | G51: 0.09
A52: 6th | B52: =$B$7*$G$52 -> 125.75 | C52: =$C$7*$G$52 -> 109.75 | D52: =$D$7*$G$52 -> 77.75 | E52: =$E$7*$G$52 -> 61.75 | F52: è | G52: 0.05
A53: Totals | B53: =SUM(B47:B52) -> 2515 | C53: =SUM(C47:C52) -> 2195 | D53: =SUM(D47:D52) -> 1555 | E53: =SUM(E47:E52) -> 1235 | F53: =SUM(B53:E53) -> 7500 | G53: =SUM(G47:G52) -> 1
A55: For 167-222 riders 8 places
A56: Placings | B56: 1D | C56: 2D | D56: 3D | E56: 4D
A57: 1st | B57: =$B$7*$G$57 -> 603.6 | C57: =$C$7*$G$57 -> 526.8 | D57: =$D$7*$G$57 -> 373.2 | E57: =$E$7*$G$57 -> 296.4 | F57: è | G57: 0.24
A58: 2nd | B58: =$B$7*$G$58 -> 503 | C58: =$C$7*$G$58 -> 439 | D58: =$D$7*$G$58 -> 311 | E58: =$E$7*$G$58 -> 247 | F58: è | G58: 0.2
A59: 3rd | B59: =$B$7*$G$59 -> 427.55 | C59: =$C$7*$G$59 -> 373.15 | D59: =$D$7*$G$59 -> 264.35 | E59: =$E$7*$G$59 -> 209.95 | F59: è | G59: 0.17
A60: 4th | B60: =$B$7*$G$60 -> 326.95 | C60: =$C$7*$G$60 -> 285.35 | D60: =$D$7*$G$60 -> 202.15 | E60: =$E$7*$G$60 -> 160.55 | F60: è | G60: 0.13
A61: 5th | B61: =$B$7*$G$61 -> 251.5 | C61: =$C$7*$G$61 -> 219.5 | D61: =$D$7*$G$61 -> 155.5 | E61: =$E$7*$G$61 -> 123.5 | F61: è | G61: 0.1
A62: 6th | B62: =$B$7*$G$62 -> 176.05 | C62: =$C$7*$G$62 -> 153.65 | D62: =$D$7*$G$62 -> 108.85 | E62: =$E$7*$G$62 -> 86.45 | F62: è | G62: 0.07
A63: 7th | B63: =$B$7*$G$63 -> 125.75 | C63: =$C$7*$G$63 -> 109.75 | D63: =$D$7*$G$63 -> 77.75 | E63: =$E$7*$G$63 -> 61.75 | F63: è | G63: 0.05
A64: 8th | B64: =$B$7*$G$64 -> 100.6 | C64: =$C$7*$G$64 -> 87.8 | D64: =$D$7*$G$64 -> 62.2 | E64: =$E$7*$G$64 -> 49.4 | F64: è | G64: 0.04
A65: Totals | B65: =SUM(B57:B64) -> 2515 | C65: =SUM(C57:C64) -> 2195 | D65: =SUM(D57:D64) -> 1555 | E65: =SUM(E57:E64) -> 1235 | F65: =SUM(B65:E65) -> 7500 | G65: =SUM(G57:G64) -> 1
A67: For 223-333 riders 10 places
A68: Placings | B68: 1D | C68: 2D | D68: 3D | E68: 4D
A69: 1st | B69: =$B$7*$G$69 -> 528.15 | C69: =$C$7*$G$69 -> 460.95 | D69: =$D$7*$G$69 -> 326.55 | E69: =$E$7*$G$69 -> 259.35 | F69: è | G69: 0.21
A70: 2nd | B70: =$B$7*$G$70 -> 452.7 | C70: =$C$7*$G$70 -> 395.1 | D70: =$D$7*$G$70 -> 279.9 | E70: =$E$7*$G$70 -> 222.3 | F70: è | G70: 0.18
A71: 3rd | B71: =$B$7*$G$71 -> 377.25 | C71: =$C$7*$G$71 -> 329.25 | D71: =$D$7*$G$71 -> 233.25 | E71: =$E$7*$G$71 -> 185.25 | F71: è | G71: 0.15
A72: 4th | B72: =$B$7*$G$72 -> 301.8 | C72: =$C$7*$G$72 -> 263.4 | D72: =$D$7*$G$72 -> 186.6 | E72: =$E$7*$G$72 -> 148.2 | F72: è | G72: 0.12
A73: 5th | B73: =$B$7*$G$73 -> 226.35 | C73: =$C$7*$G$73 -> 197.55 | D73: =$D$7*$G$73 -> 139.95 | E73: =$E$7*$G$73 -> 111.15 | F73: è | G73: 0.09
A74: 6th | B74: =$B$7*$G$74 -> 176.05 | C74: =$C$7*$G$74 -> 153.65 | D74: =$D$7*$G$74 -> 108.85 | E74: =$E$7*$G$74 -> 86.45 | F74: è | G74: 0.07
A75: 7th | B75: =$B$7*$G$75 -> 150.9 | C75: =$C$7*$G$75 -> 131.7 | D75: =$D$7*$G$75 -> 93.3 | E75: =$E$7*$G$75 -> 74.1 | F75: è | G75: 0.06
A76: 8th | B76: =$B$7*$G$76 -> 125.75 | C76: =$C$7*$G$76 -> 109.75 | D76: =$D$7*$G$76 -> 77.75 | E76: =$E$7*$G$76 -> 61.75 | F76: è | G76: 0.05
A77: 9th | B77: =$B$7*$G$77 -> 100.6 | C77: =$C$7*$G$77 -> 87.8 | D77: =$D$7*$G$77 -> 62.2 | E77: =$E$7*$G$77 -> 49.4 | F77: è | G77: 0.04
A78: 10th | B78: =$B$7*$G$78 -> 75.45 | C78: =$C$7*$G$78 -> 65.85 | D78: =$D$7*$G$78 -> 46.65 | E78: =$E$7*$G$78 -> 37.05 | F78: è | G78: 0.03
A79: Totals | B79: =SUM(B69:B78) -> 2515 | C79: =SUM(C69:C78) -> 2195 | D79: =SUM(D69:D78) -> 1555 | E79: =SUM(E69:E78) -> 1235 | F79: =B79+C79+D79+E79 -> 7500 | G79: =SUM(G69:G78) -> 1
A81: For 334-500 riders 12 places
A82: Placings | B82: 1D | C82: 2D | D82: 3D | E82: 4D
A83: 1st | B83: =$B$7*$G$83 -> 477.85 | C83: =$C$7*$G$83 -> 417.05 | D83: =$D$7*$G$83 -> 295.45 | E83: =$E$7*$G$83 -> 234.65 | F83: è | G83: 0.19
A84: 2nd | B84: =$B$7*$G$84 -> 377.25 | C84: =$C$7*$G$84 -> 329.25 | D84: =$D$7*$G$84 -> 233.25 | E84: =$E$7*$G$84 -> 185.25 | F84: è | G84: 0.15
A85: 3rd | B85: =$B$7*$G$85 -> 301.8 | C85: =$C$7*$G$85 -> 263.4 | D85: =$D$7*$G$85 -> 186.6 | E85: =$E$7*$G$85 -> 148.2 | F85: è | G85: 0.12
A86: 4th | B86: =$B$7*$G$86 -> 251.5 | C86: =$C$7*$G$86 -> 219.5 | D86: =$D$7*$G$86 -> 155.5 | E86: =$E$7*$G$86 -> 123.5 | F86: è | G86: 0.1
A87: 5th | B87: =$B$7*$G$87 -> 226.35 | C87: =$C$7*$G$87 -> 197.55 | D87: =$D$7*$G$87 -> 139.95 | E87: =$E$7*$G$87 -> 111.15 | F87: è | G87: 0.09
A88: 6th | B88: =$B$7*$G$88 -> 201.2 | C88: =$C$7*$G$88 -> 175.6 | D88: =$D$7*$G$88 -> 124.4 | E88: =$E$7*$G$88 -> 98.8 | F88: è | G88: 0.08
A89: 7th | B89: =$B$7*$G$89 -> 176.05 | C89: =$C$7*$G$89 -> 153.65 | D89: =$D$7*$G$89 -> 108.85 | E89: =$E$7*$G$89 -> 86.45 | F89: è | G89: 0.07
A90: 8th | B90: =$B$7*$G$90 -> 150.9 | C90: =$C$7*$G$90 -> 131.7 | D90: =$D$7*$G$90 -> 93.3 | E90: =$E$7*$G$90 -> 74.1 | F90: è | G90: 0.06
A91: 9th | B91: =$B$7*$G$91 -> 125.75 | C91: =$C$7*$G$91 -> 109.75 | D91: =$D$7*$G$91 -> 77.75 | E91: =$E$7*$G$91 -> 61.75 | F91: è | G91: 0.05
A92: 10th | B92: =$B$7*$G$92 -> 100.6 | C92: =$C$7*$G$92 -> 87.8 | D92: =$D$7*$G$92 -> 62.2 | E92: =$E$7*$G$92 -> 49.4 | F92: è | G92: 0.04
A93: 11th | B93: =$B$7*$G$93 -> 75.45 | C93: =$C$7*$G$93 -> 65.85 | D93: =$D$7*$G$93 -> 46.65 | E93: =$E$7*$G$93 -> 37.05 | F93: è | G93: 0.03
A94: 12th | B94: =$B$7*$G$94 -> 50.3 | C94: =$C$7*$G$94 -> 43.9 | D94: =$D$7*$G$94 -> 31.1 | E94: =$E$7*$G$94 -> 24.7 | F94: è | G94: 0.02
A95: Totals | B95: =SUM(B83:B94) -> 2515 | C95: =SUM(C83:C94) -> 2195 | D95: 1555 | E95: 1235 | F95: =B95+C95+D95+E95 -> 7500 | G95: =SUM(G83:G94) -> 1
A97: For 501-750 riders 15 places
A98: Placings | B98: 1D | C98: 2D | D98: 3D | E98: 4D
A99: 1st | B99: =$B$7*$G$99 -> 452.7 | C99: =$C$7*$G$99 -> 395.1 | D99: =$D$7*$G$99 -> 279.9 | E99: =$E$7*$G$99 -> 222.3 | F99: è | G99: 0.18
A100: 2nd | B100: =$B$7*$G$100 -> 377.25 | C100: =$C$7*$G$100 -> 329.25 | D100: =$D$7*$G$100 -> 233.25 | E100: =$E$7*$G$100 -> 185.25 | F100: è | G100: 0.15
A101: 3rd | B101: =$B$7*$G$101 -> 301.8 | C101: =$C$7*$G$101 -> 263.4 | D101: =$D$7*$G$101 -> 186.6 | E101: =$E$7*$G$101 -> 148.2 | F101: è | G101: 0.12
A102: 4th | B102: =$B$7*$G$102 -> 251.5 | C102: =$C$7*$G$102 -> 219.5 | D102: =$D$7*$G$102 -> 155.5 | E102: =$E$7*$G$102 -> 123.5 | F102: è | G102: 0.1
A103: 5th | B103: =$B$7*$G$103 -> 213.775 | C103: =$C$7*$G$103 -> 186.575 | D103: =$D$7*$G$103 -> 132.175 | E103: =$E$7*$G$103 -> 104.975 | F103: è | G103: 0.085
A104: 6th | B104: =$B$7*$G$104 -> 176.05 | C104: =$C$7*$G$104 -> 153.65 | D104: =$D$7*$G$104 -> 108.85 | E104: =$E$7*$G$104 -> 86.45 | F104: è | G104: 0.07
A105: 7th | B105: =$B$7*$G$105 -> 150.9 | C105: =$C$7*$G$105 -> 131.7 | D105: =$D$7*$G$105 -> 93.3 | E105: =$E$7*$G$105 -> 74.1 | F105: è | G105: 0.06
A106: 8th | B106: =$B$7*$G$106 -> 125.75 | C106: =$C$7*$G$106 -> 109.75 | D106: =$D$7*$G$106 -> 77.75 | E106: =$E$7*$G$106 -> 61.75 | F106: è | G106: 0.05
A107: 9th | B107: =$B$7*$G$107 -> 106.8875 | C107: =$C$7*$G$107 -> 93.2875 | D107: =$D$7*$G$107 -> 66.0875 | E107: =$E$7*$G$107 -> 52.4875 | F107: è | G107: 0.0425
A108: 10th | B108: =$B$7*$G$108 -> 88.025 | C108: =$C$7*$G$108 -> 76.825 | D108: =$D$7*$G$108 -> 54.425 | E108: =$E$7*$G$108 -> 43.225 | F108: è | G108: 0.035
A109: 11th | B109: =$B$7*$G$109 -> 75.45 | C109: =$C$7*$G$109 -> 65.85 | D109: =$D$7*$G$109 -> 46.65 | E109: =$E$7*$G$109 -> 37.05 | F109: è | G109: 0.03
A110: 12th | B110: =$B$7*$G$110 -> 62.875 | C110: =$C$7*$G$110 -> 54.875 | D110: =$D$7*$G$110 -> 38.875 | E110: =$E$7*$G$110 -> 30.875 | F110: è | G110: 0.025
A111: 13th | B111: =$B$7*$G$111 -> 50.3 | C111: =$C$7*$G$111 -> 43.9 | D111: =$D$7*$G$111 -> 31.1 | E111: =$E$7*$G$111 -> 24.7 | F111: è | G111: 0.02
A112: 14th | B112: =$B$7*$G$112 -> 44.0125 | C112: =$C$7*$G$112 -> 38.4125 | D112: =$D$7*$G$112 -> 27.2125 | E112: =$E$7*$G$112 -> 21.6125 | F112: è | G112: 0.0175
A113: 15th | B113: =$B$7*$G$113 -> 37.725 | C113: =$C$7*$G$113 -> 32.925 | D113: =$D$7*$G$113 -> 23.325 | E113: =$E$7*$G$113 -> 18.525 | F113: è | G113: 0.015
A114: Totals | B114: =SUM(B99:B113) -> 2515 | C114: =SUM(C99:C113) -> 2195 | D114: 1555 | E114: 1235 | F114: =B114+C114+D114+E114 -> 7500 | G114: =SUM(G99:G113) -> 1
A116: For 751-1200 riders 20 places
A117: Placings | B117: 1D | C117: 2D | D117: 3D | E117: 4D
A118: 1st | B118: =$B$7*$G$118 -> 352.1 | C118: =$C$7*$G$118 -> 307.3 | D118: =$D$7*$G$118 -> 217.7 | E118: =$E$7*$G$118 -> 172.9 | F118: è | G118: 0.14
A119: 2nd | B119: =$B$7*$G$119 -> 276.65 | C119: =$C$7*$G$119 -> 241.45 | D119: =$D$7*$G$119 -> 171.05 | E119: =$E$7*$G$119 -> 135.85 | F119: è | G119: 0.11
A120: 3rd | B120: =$B$7*$G$120 -> 226.35 | C120: =$C$7*$G$120 -> 197.55 | D120: =$D$7*$G$120 -> 139.95 | E120: =$E$7*$G$120 -> 111.15 | F120: è | G120: 0.09
A121: 4th | B121: =$B$7*$G$121 -> 193.655 | C121: =$C$7*$G$121 -> 169.015 | D121: =$D$7*$G$121 -> 119.735 | E121: =$E$7*$G$121 -> 95.095 | F121: è | G121: 0.077
A122: 5th | B122: =$B$7*$G$122 -> 176.05 | C122: =$C$7*$G$122 -> 153.65 | D122: =$D$7*$G$122 -> 108.85 | E122: =$E$7*$G$122 -> 86.45 | F122: è | G122: 0.07
A123: 6th | B123: =$B$7*$G$123 -> 163.475 | C123: =$C$7*$G$123 -> 142.675 | D123: =$D$7*$G$123 -> 101.075 | E123: =$E$7*$G$123 -> 80.275 | F123: è | G123: 0.065
A124: 7th | B124: =$B$7*$G$124 -> 150.9 | C124: =$C$7*$G$124 -> 131.7 | D124: =$D$7*$G$124 -> 93.3 | E124: =$E$7*$G$124 -> 74.1 | F124: è | G124: 0.06
A125: 8th | B125: =$B$7*$G$125 -> 138.325 | C125: =$C$7*$G$125 -> 120.725 | D125: =$D$7*$G$125 -> 85.525 | E125: =$E$7*$G$125 -> 67.925 | F125: è | G125: 0.055
A126: 9th | B126: =$B$7*$G$126 -> 125.75 | C126: =$C$7*$G$126 -> 109.75 | D126: =$D$7*$G$126 -> 77.75 | E126: =$E$7*$G$126 -> 61.75 | F126: è | G126: 0.05
A127: 10th | B127: =$B$7*$G$127 -> 113.175 | C127: =$C$7*$G$127 -> 98.775 | D127: =$D$7*$G$127 -> 69.975 | E127: =$E$7*$G$127 -> 55.575 | F127: è | G127: 0.045
A128: 11th | B128: =$B$7*$G$128 -> 100.6 | C128: =$C$7*$G$128 -> 87.8 | D128: =$D$7*$G$128 -> 62.2 | E128: =$E$7*$G$128 -> 49.4 | F128: è | G128: 0.04
A129: 12th | B129: =$B$7*$G$129 -> 93.055 | C129: =$C$7*$G$129 -> 81.215 | D129: =$D$7*$G$129 -> 57.535 | E129: =$E$7*$G$129 -> 45.695 | F129: è | G129: 0.037
A130: 13th | B130: =$B$7*$G$130 -> 82.995 | C130: =$C$7*$G$130 -> 72.435 | D130: =$D$7*$G$130 -> 51.315 | E130: =$E$7*$G$130 -> 40.755 | F130: è | G130: 0.033
A131: 14th | B131: =$B$7*$G$131 -> 72.935 | C131: =$C$7*$G$131 -> 63.655 | D131: =$D$7*$G$131 -> 45.095 | E131: =$E$7*$G$131 -> 35.815 | F131: è | G131: 0.029
A132: 15th | B132: =$B$7*$G$132 -> 62.875 | C132: =$C$7*$G$132 -> 54.875 | D132: =$D$7*$G$132 -> 38.875 | E132: =$E$7*$G$132 -> 30.875 | F132: è | G132: 0.025
A133: 16th | B133: =$B$7*$G$133 -> 52.815 | C133: =$C$7*$G$133 -> 46.095 | D133: =$D$7*$G$133 -> 32.655 | E133: =$E$7*$G$133 -> 25.935 | F133: è | G133: 0.021
A134: 17th | B134: =$B$7*$G$134 -> 42.755 | C134: =$C$7*$G$134 -> 37.315 | D134: =$D$7*$G$134 -> 26.435 | E134: =$E$7*$G$134 -> 20.995 | F134: è | G134: 0.017
A135: 18th | B135: =$B$7*$G$135 -> 35.21 | C135: =$C$7*$G$135 -> 30.73 | D135: =$D$7*$G$135 -> 21.77 | E135: =$E$7*$G$135 -> 17.29 | F135: è | G135: 0.014
A136: 19th | B136: =$B$7*$G$136 -> 30.18 | C136: =$C$7*$G$136 -> 26.34 | D136: =$D$7*$G$136 -> 18.66 | E136: =$E$7*$G$136 -> 14.82 | F136: è | G136: 0.012
A137: 20th | B137: =$B$7*$G$137 -> 25.15 | C137: =$C$7*$G$137 -> 21.95 | D137: =$D$7*$G$137 -> 15.55 | E137: =$E$7*$G$137 -> 12.35 | F137: è | G137: 0.01
A138: Totals | B138: =SUM(B118:B137) -> 2515 | C138: =SUM(C118:C137) -> 2195 | D138: 1555 | E138: 1235 | F138: =B138+C138+D138+E138 -> 7500 | G138: =SUM(G118:G137) -> 1
A140: For 1201 or More riders 30 places
A141: Placings | B141: 1D | C141: 2D | D141: 3D | E141: 4D
A142: 1st | B142: =$B$7*$G$142 -> 301.8 | C142: =$C$7*$G$142 -> 263.4 | D142: =$D$7*$G$142 -> 186.6 | E142: =$E$7*$G$142 -> 148.2 | F142: è | G142: 0.12
A143: 2nd | B143: =$B$7*$G$143 -> 238.925 | C143: =$C$7*$G$143 -> 208.525 | D143: =$D$7*$G$143 -> 147.725 | E143: =$E$7*$G$143 -> 117.325 | F143: è | G143: 0.095
A144: 3rd | B144: =$B$7*$G$144 -> 183.595 | C144: =$C$7*$G$144 -> 160.235 | D144: =$D$7*$G$144 -> 113.515 | E144: =$E$7*$G$144 -> 90.155 | F144: è | G144: 0.073
A145: 4th | B145: =$B$7*$G$145 -> 155.93 | C145: =$C$7*$G$145 -> 136.09 | D145: =$D$7*$G$145 -> 96.41 | E145: =$E$7*$G$145 -> 76.57 | F145: è | G145: 0.062
A146: 5th | B146: =$B$7*$G$146 -> 125.75 | C146: =$C$7*$G$146 -> 109.75 | D146: =$D$7*$G$146 -> 77.75 | E146: =$E$7*$G$146 -> 61.75 | F146: è | G146: 0.05
A147: 6th | B147: =$B$7*$G$147 -> 113.175 | C147: =$C$7*$G$147 -> 98.775 | D147: =$D$7*$G$147 -> 69.975 | E147: =$E$7*$G$147 -> 55.575 | F147: è | G147: 0.045
A148: 7th | B148: =$B$7*$G$148 -> 108.145 | C148: =$C$7*$G$148 -> 94.385 | D148: =$D$7*$G$148 -> 66.865 | E148: =$E$7*$G$148 -> 53.105 | F148: è | G148: 0.043
A149: 8th | B149: =$B$7*$G$149 -> 100.6 | C149: =$C$7*$G$149 -> 87.8 | D149: =$D$7*$G$149 -> 62.2 | E149: =$E$7*$G$149 -> 49.4 | F149: è | G149: 0.04
A150: 9th | B150: =$B$7*$G$150 -> 93.055 | C150: =$C$7*$G$150 -> 81.215 | D150: =$D$7*$G$150 -> 57.535 | E150: =$E$7*$G$150 -> 45.695 | F150: è | G150: 0.037
A151: 10th | B151: =$B$7*$G$151 -> 88.025 | C151: =$C$7*$G$151 -> 76.825 | D151: =$D$7*$G$151 -> 54.425 | E151: =$E$7*$G$151 -> 43.225 | F151: è | G151: 0.035
A152: 11th | B152: =$B$7*$G$152 -> 82.995 | C152: =$C$7*$G$152 -> 72.435 | D152: =$D$7*$G$152 -> 51.315 | E152: =$E$7*$G$152 -> 40.755 | F152: è | G152: 0.033
A153: 12th | B153: =$B$7*$G$153 -> 77.965 | C153: =$C$7*$G$153 -> 68.045 | D153: =$D$7*$G$153 -> 48.205 | E153: =$E$7*$G$153 -> 38.285 | F153: è | G153: 0.031
A154: 13th | B154: =$B$7*$G$154 -> 72.935 | C154: =$C$7*$G$154 -> 63.655 | D154: =$D$7*$G$154 -> 45.095 | E154: =$E$7*$G$154 -> 35.815 | F154: è | G154: 0.029
A155: 14th | B155: =$B$7*$G$155 -> 67.905 | C155: =$C$7*$G$155 -> 59.265 | D155: =$D$7*$G$155 -> 41.985 | E155: =$E$7*$G$155 -> 33.345 | F155: è | G155: 0.027
A156: 15th | B156: =$B$7*$G$156 -> 62.875 | C156: =$C$7*$G$156 -> 54.875 | D156: =$D$7*$G$156 -> 38.875 | E156: =$E$7*$G$156 -> 30.875 | F156: è | G156: 0.025
A157: 16th | B157: =$B$7*$G$157 -> 60.36 | C157: =$C$7*$G$157 -> 52.68 | D157: =$D$7*$G$157 -> 37.32 | E157: =$E$7*$G$157 -> 29.64 | F157: è | G157: 0.024
A158: 17th | B158: =$B$7*$G$158 -> 57.845 | C158: =$C$7*$G$158 -> 50.485 | D158: =$D$7*$G$158 -> 35.765 | E158: =$E$7*$G$158 -> 28.405 | F158: è | G158: 0.023
A159: 18th | B159: =$B$7*$G$159 -> 55.33 | C159: =$C$7*$G$159 -> 48.29 | D159: =$D$7*$G$159 -> 34.21 | E159: =$E$7*$G$159 -> 27.17 | F159: è | G159: 0.022
A160: 19th | B160: =$B$7*$G$160 -> 52.815 | C160: =$C$7*$G$160 -> 46.095 | D160: =$D$7*$G$160 -> 32.655 | E160: =$E$7*$G$160 -> 25.935 | F160: è | G160: 0.021
A161: 20th | B161: =$B$7*$G$161 -> 50.3 | C161: =$C$7*$G$161 -> 43.9 | D161: =$D$7*$G$161 -> 31.1 | E161: =$E$7*$G$161 -> 24.7 | F161: è | G161: 0.02
A162: 21st | B162: =$B$7*$G$162 -> 47.785 | C162: =$C$7*$G$162 -> 41.705 | D162: =$D$7*$G$162 -> 29.545 | E162: =$E$7*$G$162 -> 23.465 | F162: è | G162: 0.019
A163: 22nd | B163: =$B$7*$G$163 -> 45.27 | C163: =$C$7*$G$163 -> 39.51 | D163: =$D$7*$G$163 -> 27.99 | E163: =$E$7*$G$163 -> 22.23 | F163: è | G163: 0.018
A164: 23rd | B164: =$B$7*$G$164 -> 42.755 | C164: =$C$7*$G$164 -> 37.315 | D164: =$D$7*$G$164 -> 26.435 | E164: =$E$7*$G$164 -> 20.995 | F164: è | G164: 0.017
A165: 24th | B165: =$B$7*$G$165 -> 40.24 | C165: =$C$7*$G$165 -> 35.12 | D165: =$D$7*$G$165 -> 24.88 | E165: =$E$7*$G$165 -> 19.76 | F165: è | G165: 0.016
A166: 25th | B166: =$B$7*$G$166 -> 37.725 | C166: =$C$7*$G$166 -> 32.925 | D166: =$D$7*$G$166 -> 23.325 | E166: =$E$7*$G$166 -> 18.525 | F166: è | G166: 0.015
A167: 26th | B167: =$B$7*$G$167 -> 35.21 | C167: =$C$7*$G$167 -> 30.73 | D167: =$D$7*$G$167 -> 21.77 | E167: =$E$7*$G$167 -> 17.29 | F167: è | G167: 0.014
A168: 27th | B168: =$B$7*$G$168 -> 32.695 | C168: =$C$7*$G$168 -> 28.535 | D168: =$D$7*$G$168 -> 20.215 | E168: =$E$7*$G$168 -> 16.055 | F168: è | G168: 0.013
A169: 28th | B169: =$B$7*$G$169 -> 30.18 | C169: =$C$7*$G$169 -> 26.34 | D169: =$D$7*$G$169 -> 18.66 | E169: =$E$7*$G$169 -> 14.82 | F169: è | G169: 0.012
A170: 29th | B170: =$B$7*$G$170 -> 27.665 | C170: =$C$7*$G$170 -> 24.145 | D170: =$D$7*$G$170 -> 17.105 | E170: =$E$7*$G$170 -> 13.585 | F170: è | G170: 0.011
A171: 30th | B171: =$B$7*$G$171 -> 25.15 | C171: =$C$7*$G$171 -> 21.95 | D171: =$D$7*$G$171 -> 15.55 | E171: =$E$7*$G$171 -> 12.35 | F171: è | G171: 0.01
A172: Totals | B172: =SUM(B142:B171) -> 2515 | C172: =SUM(C142:C171) -> 2195 | D172: =SUM(D142:D171) -> 1555 | E172: =SUM(E142:E171) -> 1235 | F172: =B172+C172+D172+E172 -> 7500 | G172: =SUM(G142:G171) -> 1

Sheet 5D Payout BBR
A1: 5D Payout BBR
A2: Entry Fee | B2: # Entries | C2: % Payback | D2: $ From Entry | E2: Added $ | F2: Total Payout | G2: Total $ Held
A3: 100 | B3: 12 | C3: 0.8 | D3: =$A$3*$C$3*$B$3 -> 960 | F3: =($A$3*$C$3)*$B$3+$E$3 -> 960 | G3: =$A$3*(100%-$C$3)*$B$3 -> 240
A4: 13
A5: % in each D | B5: 0.3 | C5: 0.25 | D5: 0.2 | E5: 0.15 | F5: 0.1 | G5: Total % Payout | H5: =SUM(B5:F5) -> 1
B6: 1D | C6: 2D | D6: 3D | E6: 4D | F6: 5D
B7: =(($A$3*$B$3*$C$3*$B$5)+($E$3*$B$5)) -> 288 | C7: =(($A$3*$B$3*$C$3*$C$5)+($E$3*$C$5)) -> 240 | D7: =(($A$3*$B$3*$C$3*$D$5)+($E$3*$D$5)) -> 192 | E7: =(($A$3*$B$3*$C$3*$E$5)+($E$3*$E$5)) -> 144 | F7: =(($A$3*$B$3*$C$3*$F$5)+($E$3*$F$5)) -> 96
A8: Totals | B8: =SUM(B7) -> 288 | C8: =SUM(C7) -> 240 | D8: 192 | E8: 144 | F8: 96 | G8: =SUM(B8:F8) -> 960
A10: For 1-25 riders 1 place
A11: Placings | B11: 1D | C11: 2D | D11: 3D | E11: 4D | F11: 5D
A12: 1st | B12: =$B$7*$H$12 -> 288 | C12: =$C$7*$H$12 -> 240 | D12: =$D$7*$H$12 -> 192 | E12: =$E$7*$H$12 -> 144 | F12: =$F$7*$H$12 -> 96 | G12: è | H12: 1
A13: Totals | B13: =SUM(B12:B12) -> 288 | C13: =SUM(C12:C12) -> 240 | D13: =SUM(D12:D12) -> 192 | E13: =SUM(E12:E12) -> 144 | F13: =SUM(F12) -> 96 | G13: =SUM(B13:F13) -> 960 | H13: =SUM(H12) -> 1
A15: For 26-50 riders 2 places
A16: Placings | B16: 1D | C16: 2D | D16: 3D | E16: 4D | F16: 5D
A17: 1st | B17: =$B$7*$H$17 -> 172.8 | C17: =$C$7*$H$17 -> 144 | D17: =$D$7*$H$17 -> 115.2 | E17: =$E$7*$H$17 -> 86.4 | F17: =$F$7*$H$17 -> 57.6 | G17: è | H17: 0.6
A18: 2nd | B18: =$B$7*$H$18 -> 115.2 | C18: =$C$7*$H$18 -> 96 | D18: =$D$7*$H$18 -> 76.8 | E18: =$E$7*$H$18 -> 57.6 | F18: =$F$7*$H$18 -> 38.4 | G18: è | H18: 0.4
A19: Totals | B19: =SUM(B17:B18) -> 288 | C19: =SUM(C17:C18) -> 240 | D19: =SUM(D17:D18) -> 192 | E19: =SUM(E17:E18) -> 144 | F19: =SUM(F17:F18) -> 96 | G19: =SUM(B19:F19) -> 960 | H19: =SUM(H17:H18) -> 1
A21: For 51-100 riders 3 places
A22: Placings | B22: 1D | C22: 2D | D22: 3D | E22: 4D | F22: 5D
A23: 1st | B23: =$B$7*$H$23 -> 144 | C23: =$C$7*$H$23 -> 120 | D23: =$D$7*$H$23 -> 96 | E23: =$E$7*$H$23 -> 72 | F23: =$F$7*$H$23 -> 48 | G23: è | H23: 0.5
A24: 2nd | B24: =$B$7*$H$24 -> 86.4 | C24: =$C$7*$H$24 -> 72 | D24: =$D$7*$H$24 -> 57.6 | E24: =$E$7*$H$24 -> 43.2 | F24: =$F$7*$H$24 -> 28.8 | G24: è | H24: 0.3
A25: 3rd | B25: =$B$7*$H$25 -> 57.6 | C25: =$C$7*$H$25 -> 48 | D25: =$D$7*$H$25 -> 38.4 | E25: =$E$7*$H$25 -> 28.8 | F25: =$F$7*$H$25 -> 19.2 | G25: è | H25: 0.2
A26: Totals | B26: =SUM(B23:B25) -> 288 | C26: =SUM(C23:C25) -> 240 | D26: =SUM(D23:D25) -> 192 | E26: =SUM(E23:E25) -> 144 | F26: =SUM(F23:F25) -> 96 | G26: =SUM(B26:F26) -> 960 | H26: =SUM(H23:H25) -> 1
A28: For 101-143 riders 4 places
A29: Placings | B29: 1D | C29: 2D | D29: 3D | E29: 4D | F29: 5D
A30: 1st | B30: =$B$7*$H$30 -> 115.2 | C30: =$C$7*$H$30 -> 96 | D30: =$D$7*$H$30 -> 76.8 | E30: =$E$7*$H$30 -> 57.6 | F30: =$F$7*$H$30 -> 38.4 | G30: è | H30: 0.4
A31: 2nd | B31: =$B$7*$H$31 -> 86.4 | C31: =$C$7*$H$31 -> 72 | D31: =$D$7*$H$31 -> 57.6 | E31: =$E$7*$H$31 -> 43.2 | F31: =$F$7*$H$31 -> 28.8 | G31: è | H31: 0.3
A32: 3rd | B32: =$B$7*$H$32 -> 57.6 | C32: =$C$7*$H$32 -> 48 | D32: =$D$7*$H$32 -> 38.4 | E32: =$E$7*$H$32 -> 28.8 | F32: =$F$7*$H$32 -> 19.2 | G32: è | H32: 0.2
A33: 4th | B33: =$B$7*$H$33 -> 28.8 | C33: =$C$7*$H$33 -> 24 | D33: =$D$7*$H$33 -> 19.2 | E33: =$E$7*$H$33 -> 14.4 | F33: =$F$7*$H$33 -> 9.6 | G33: è | H33: 0.1
A34: Totals | B34: =SUM(B30:B33) -> 288 | C34: =SUM(C30:C33) -> 240 | D34: =SUM(D30:D33) -> 192 | E34: =SUM(E30:E33) -> 144 | F34: =SUM(F30:F33) -> 96 | G34: =SUM(B34:F34) -> 960 | H34: =SUM(H30:H33) -> 1
A36: For 144-200 riders 5 places
A37: Placings | B37: 1D | C37: 2D | D37: 3D | E37: 4D | F37: 5D
A38: 1st | B38: =$B$7*$H$38 -> 95.04 | C38: =$C$7*$H$38 -> 79.2 | D38: 709.5 | E38: =$E$7*$H$38 -> 47.52 | F38: =$F$7*$H$38 -> 31.68 | G38: è | H38: 0.33
A39: 2nd | B39: =$B$7*$H$39 -> 77.76 | C39: =$C$7*$H$39 -> 64.8 | D39: 580.5 | E39: =$E$7*$H$39 -> 38.88 | F39: =$F$7*$H$39 -> 25.92 | G39: è | H39: 0.27
A40: 3rd | B40: =$B$7*$H$40 -> 57.6 | C40: =$C$7*$H$40 -> 48 | D40: 430 | E40: =$E$7*$H$40 -> 28.8 | F40: =$F$7*$H$40 -> 19.2 | G40: è | H40: 0.2
A41: 4th | B41: =$B$7*$H$41 -> 37.44 | C41: =$C$7*$H$41 -> 31.2 | D41: 279.5 | E41: =$E$7*$H$41 -> 18.72 | F41: =$F$7*$H$41 -> 12.48 | G41: è | H41: 0.13
A42: 5th | B42: =$B$7*$H$42 -> 20.16 | C42: =$C$7*$H$42 -> 16.8 | D42: 150.5 | E42: =$E$7*$H$42 -> 10.08 | F42: =$F$7*$H$42 -> 6.72 | G42: è | H42: 0.07
A43: Totals | B43: =SUM(B38:B42) -> 288 | C43: =SUM(C38:C42) -> 240 | D43: =SUM(D38:D42) -> 2150 | E43: =SUM(E38:E42) -> 144 | F43: =SUM(F38:F42) -> 96 | G43: =SUM(B43:F43) -> 2918 | H43: =SUM(H38:H42) -> 1
A45: For 201-250 riders 6 places
A46: Placings | B46: 1D | C46: 2D | D46: 3D | E46: 4D | F46: 5D
A47: 1st | B47: =$B$7*$H$47 -> 83.52 | C47: =$C$7*$H$47 -> 69.6 | D47: =$D$7*$H$47 -> 55.68 | E47: =$E$7*$H$47 -> 41.76 | F47: =$F$7*$H$47 -> 27.84 | G47: è | H47: 0.29
A48: 2nd | B48: =$B$7*$H$48 -> 69.12 | C48: =$C$7*$H$48 -> 57.6 | D48: =$D$7*$H$48 -> 46.08 | E48: =$E$7*$H$48 -> 34.56 | F48: =$F$7*$H$48 -> 23.04 | G48: è | H48: 0.24
A49: 3rd | B49: =$B$7*$H$49 -> 54.72 | C49: =$C$7*$H$49 -> 45.6 | D49: =$D$7*$H$49 -> 36.48 | E49: =$E$7*$H$49 -> 27.36 | F49: =$F$7*$H$49 -> 18.24 | G49: è | H49: 0.19
A50: 4th | B50: =$B$7*$H$50 -> 40.32 | C50: =$C$7*$H$50 -> 33.6 | D50: =$D$7*$H$50 -> 26.88 | E50: =$E$7*$H$50 -> 20.16 | F50: =$F$7*$H$50 -> 13.44 | G50: è | H50: 0.14
A51: 5th | B51: =$B$7*$H$51 -> 25.92 | C51: =$C$7*$H$51 -> 21.6 | D51: =$D$7*$H$51 -> 17.28 | E51: =$E$7*$H$51 -> 12.96 | F51: =$F$7*$H$51 -> 8.64 | G51: è | H51: 0.09
A52: 6th | B52: =$B$7*$H$52 -> 14.4 | C52: =$C$7*$H$52 -> 12 | D52: =$D$7*$H$52 -> 9.6 | E52: =$E$7*$H$52 -> 7.2 | F52: =$F$7*$H$52 -> 4.8 | G52: è | H52: 0.05
A53: Totals | B53: =SUM(B47:B52) -> 288 | C53: =SUM(C47:C52) -> 240 | D53: =SUM(D47:D52) -> 192 | E53: =SUM(E47:E52) -> 144 | F53: =SUM(F47:F52) -> 96 | G53: =SUM(B53:F53) -> 960 | H53: =SUM(H47:H52) -> 1
A55: For 251-333 riders 8 places
A56: Placings | B56: 1D | C56: 2D | D56: 3D | E56: 4D | F56: 5D
A57: 1st | B57: =$B$7*$H$57 -> 69.12 | C57: =$C$7*$H$57 -> 57.6 | D57: =$D$7*$H$57 -> 46.08 | E57: =$E$7*$H$57 -> 34.56 | F57: =$F$7*$H$57 -> 23.04 | G57: è | H57: 0.24
A58: 2nd | B58: =$B$7*$H$58 -> 57.6 | C58: =$C$7*$H$58 -> 48 | D58: =$D$7*$H$58 -> 38.4 | E58: =$E$7*$H$58 -> 28.8 | F58: =$F$7*$H$58 -> 19.2 | G58: è | H58: 0.2
A59: 3rd | B59: =$B$7*$H$59 -> 48.96 | C59: =$C$7*$H$59 -> 40.8 | D59: =$D$7*$H$59 -> 32.64 | E59: =$E$7*$H$59 -> 24.48 | F59: =$F$7*$H$59 -> 16.32 | G59: è | H59: 0.17
A60: 4th | B60: =$B$7*$H$60 -> 37.44 | C60: =$C$7*$H$60 -> 31.2 | D60: =$D$7*$H$60 -> 24.96 | E60: =$E$7*$H$60 -> 18.72 | F60: =$F$7*$H$60 -> 12.48 | G60: è | H60: 0.13
A61: 5th | B61: =$B$7*$H$61 -> 28.8 | C61: =$C$7*$H$61 -> 24 | D61: =$D$7*$H$61 -> 19.2 | E61: =$E$7*$H$61 -> 14.4 | F61: =$F$7*$H$61 -> 9.6 | G61: è | H61: 0.1
A62: 6th | B62: =$B$7*$H$62 -> 20.16 | C62: =$C$7*$H$62 -> 16.8 | D62: =$D$7*$H$62 -> 13.44 | E62: =$E$7*$H$62 -> 10.08 | F62: =$F$7*$H$62 -> 6.72 | G62: è | H62: 0.07
A63: 7th | B63: =$B$7*$H$63 -> 14.4 | C63: =$C$7*$H$63 -> 12 | D63: =$D$7*$H$63 -> 9.6 | E63: =$E$7*$H$63 -> 7.2 | F63: =$F$7*$H$63 -> 4.8 | G63: è | H63: 0.05
A64: 8th | B64: =$B$7*$H$64 -> 11.52 | C64: =$C$7*$H$64 -> 9.6 | D64: =$D$7*$H$64 -> 7.68 | E64: =$E$7*$H$64 -> 5.76 | F64: =$F$7*$H$64 -> 3.84 | G64: è | H64: 0.04
A65: Totals | B65: =SUM(B57:B64) -> 288 | C65: =SUM(C57:C64) -> 240 | D65: =SUM(D57:D64) -> 192 | E65: =SUM(E57:E64) -> 144 | F65: =SUM(F57:F64) -> 96 | G65: =SUM(B65:F65) -> 960 | H65: =SUM(H57:H64) -> 1
A67: For 334-500 riders 10 places
A68: Placings | B68: 1D | C68: 2D | D68: 3D | E68: 4D | F68: 5D
A69: 1st | B69: =$B$7*$H$69 -> 60.48 | C69: =$C$7*$H$69 -> 50.4 | D69: =$D$7*$H$69 -> 40.32 | E69: =$E$7*$H$69 -> 30.24 | F69: =$F$7*$H$69 -> 20.16 | G69: è | H69: 0.21
A70: 2nd | B70: =$B$7*$H$70 -> 51.84 | C70: =$C$7*$H$70 -> 43.2 | D70: =$D$7*$H$70 -> 34.56 | E70: =$E$7*$H$70 -> 25.92 | F70: =$F$7*$H$70 -> 17.28 | G70: è | H70: 0.18
A71: 3rd | B71: =$B$7*$H$71 -> 43.2 | C71: =$C$7*$H$71 -> 36 | D71: =$D$7*$H$71 -> 28.8 | E71: =$E$7*$H$71 -> 21.6 | F71: =$F$7*$H$71 -> 14.4 | G71: è | H71: 0.15
A72: 4th | B72: =$B$7*$H$72 -> 34.56 | C72: =$C$7*$H$72 -> 28.8 | D72: =$D$7*$H$72 -> 23.04 | E72: =$E$7*$H$72 -> 17.28 | F72: =$F$7*$H$72 -> 11.52 | G72: è | H72: 0.12
A73: 5th | B73: =$B$7*$H$73 -> 25.92 | C73: =$C$7*$H$73 -> 21.6 | D73: =$D$7*$H$73 -> 17.28 | E73: =$E$7*$H$73 -> 12.96 | F73: =$F$7*$H$73 -> 8.64 | G73: è | H73: 0.09
A74: 6th | B74: =$B$7*$H$74 -> 20.16 | C74: =$C$7*$H$74 -> 16.8 | D74: =$D$7*$H$74 -> 13.44 | E74: =$E$7*$H$74 -> 10.08 | F74: =$F$7*$H$74 -> 6.72 | G74: è | H74: 0.07
A75: 7th | B75: =$B$7*$H$75 -> 17.28 | C75: =$C$7*$H$75 -> 14.4 | D75: =$D$7*$H$75 -> 11.52 | E75: =$E$7*$H$75 -> 8.64 | F75: =$F$7*$H$75 -> 5.76 | G75: è | H75: 0.06
A76: 8th | B76: =$B$7*$H$76 -> 14.4 | C76: =$C$7*$H$76 -> 12 | D76: =$D$7*$H$76 -> 9.6 | E76: =$E$7*$H$76 -> 7.2 | F76: =$F$7*$H$76 -> 4.8 | G76: è | H76: 0.05
A77: 9th | B77: =$B$7*$H$77 -> 11.52 | C77: =$C$7*$H$77 -> 9.6 | D77: =$D$7*$H$77 -> 7.68 | E77: =$E$7*$H$77 -> 5.76 | F77: =$F$7*$H$77 -> 3.84 | G77: è | H77: 0.04
A78: 10th | B78: =$B$7*$H$78 -> 8.64 | C78: =$C$7*$H$78 -> 7.2 | D78: =$D$7*$H$78 -> 5.76 | E78: =$E$7*$H$78 -> 4.32 | F78: =$F$7*$H$78 -> 2.88 | G78: è | H78: 0.03
A79: Totals | B79: =SUM(B69:B78) -> 288 | C79: =SUM(C69:C78) -> 240 | D79: 192 | E79: 144 | F79: 96 | G79: =SUM(B79:F79) -> 960 | H79: =SUM(H69:H78) -> 1
A81: For 501-666 riders 12 places
A82: Placings | B82: 1D | C82: 2D | D82: 3D | E82: 4D | F82: 5D
A83: 1st | B83: =$B$7*$H$83 -> 54.72 | C83: =$C$7*$H$83 -> 45.6 | D83: =$D$7*$H$83 -> 36.48 | E83: =$E$7*$H$83 -> 27.36 | F83: =$F$7*$H$83 -> 18.24 | G83: è | H83: 0.19
A84: 2nd | B84: =$B$7*$H$84 -> 43.2 | C84: =$C$7*$H$84 -> 36 | D84: =$D$7*$H$84 -> 28.8 | E84: =$E$7*$H$84 -> 21.6 | F84: =$F$7*$H$84 -> 14.4 | G84: è | H84: 0.15
A85: 3rd | B85: =$B$7*$H$85 -> 34.56 | C85: =$C$7*$H$85 -> 28.8 | D85: =$D$7*$H$85 -> 23.04 | E85: =$E$7*$H$85 -> 17.28 | F85: =$F$7*$H$85 -> 11.52 | G85: è | H85: 0.12
A86: 4th | B86: =$B$7*$H$86 -> 28.8 | C86: =$C$7*$H$86 -> 24 | D86: =$D$7*$H$86 -> 19.2 | E86: =$E$7*$H$86 -> 14.4 | F86: =$F$7*$H$86 -> 9.6 | G86: è | H86: 0.1
A87: 5th | B87: =$B$7*$H$87 -> 25.92 | C87: =$C$7*$H$87 -> 21.6 | D87: =$D$7*$H$87 -> 17.28 | E87: =$E$7*$H$87 -> 12.96 | F87: =$F$7*$H$87 -> 8.64 | G87: è | H87: 0.09
A88: 6th | B88: =$B$7*$H$88 -> 23.04 | C88: =$C$7*$H$88 -> 19.2 | D88: =$D$7*$H$88 -> 15.36 | E88: =$E$7*$H$88 -> 11.52 | F88: =$F$7*$H$88 -> 7.68 | G88: è | H88: 0.08
A89: 7th | B89: =$B$7*$H$89 -> 20.16 | C89: =$C$7*$H$89 -> 16.8 | D89: =$D$7*$H$89 -> 13.44 | E89: =$E$7*$H$89 -> 10.08 | F89: =$F$7*$H$89 -> 6.72 | G89: è | H89: 0.07
A90: 8th | B90: =$B$7*$H$90 -> 17.28 | C90: =$C$7*$H$90 -> 14.4 | D90: =$D$7*$H$90 -> 11.52 | E90: =$E$7*$H$90 -> 8.64 | F90: =$F$7*$H$90 -> 5.76 | G90: è | H90: 0.06
A91: 9th | B91: =$B$7*$H$91 -> 14.4 | C91: =$C$7*$H$91 -> 12 | D91: =$D$7*$H$91 -> 9.6 | E91: =$E$7*$H$91 -> 7.2 | F91: =$F$7*$H$91 -> 4.8 | G91: è | H91: 0.05
A92: 10th | B92: =$B$7*$H$92 -> 11.52 | C92: =$C$7*$H$92 -> 9.6 | D92: =$D$7*$H$92 -> 7.68 | E92: =$E$7*$H$92 -> 5.76 | F92: =$F$7*$H$92 -> 3.84 | G92: è | H92: 0.04
A93: 11th | B93: =$B$7*$H$93 -> 8.64 | C93: =$C$7*$H$93 -> 7.2 | D93: =$D$7*$H$93 -> 5.76 | E93: =$E$7*$H$93 -> 4.32 | F93: =$F$7*$H$93 -> 2.88 | G93: è | H93: 0.03
A94: 12th | B94: =$B$7*$H$94 -> 5.76 | C94: =$C$7*$H$94 -> 4.8 | D94: =$D$7*$H$94 -> 3.84 | E94: =$E$7*$H$94 -> 2.88 | F94: =$F$7*$H$94 -> 1.92 | G94: è | H94: 0.02
A95: Totals | B95: =SUM(B83:B94) -> 288 | C95: =SUM(C83:C94) -> 240 | D95: =SUM(D83:D94) -> 192 | E95: =SUM(E83:E94) -> 144 | F95: =SUM(F83:F94) -> 96 | G95: =SUM(B95:F95) -> 960 | H95: =SUM(H83:H94) -> 1
A97: For 667-1000 riders 15 places
A98: Placings | B98: 1D | C98: 2D | D98: 3D | E98: 4D | F98: 5D
A99: 1st | B99: =$B$7*$H$99 -> 51.84 | C99: =$C$7*$H$99 -> 43.2 | D99: =$D$7*$H$99 -> 34.56 | E99: =$E$7*$H$99 -> 25.92 | F99: =$F$7*$H$99 -> 17.28 | G99: è | H99: 0.18
A100: 2nd | B100: =$B$7*$H$100 -> 43.2 | C100: =$C$7*$H$100 -> 36 | D100: =$D$7*$H$100 -> 28.8 | E100: =$E$7*$H$100 -> 21.6 | F100: =$F$7*$H$100 -> 14.4 | G100: è | H100: 0.15
A101: 3rd | B101: =$B$7*$H$101 -> 34.56 | C101: =$C$7*$H$101 -> 28.8 | D101: =$D$7*$H$101 -> 23.04 | E101: =$E$7*$H$101 -> 17.28 | F101: =$F$7*$H$101 -> 11.52 | G101: è | H101: 0.12
A102: 4th | B102: =$B$7*$H$102 -> 28.8 | C102: =$C$7*$H$102 -> 24 | D102: =$D$7*$H$102 -> 19.2 | E102: =$E$7*$H$102 -> 14.4 | F102: =$F$7*$H$102 -> 9.6 | G102: è | H102: 0.1
A103: 5th | B103: =$B$7*$H$103 -> 24.48 | C103: =$C$7*$H$103 -> 20.4 | D103: =$D$7*$H$103 -> 16.32 | E103: =$E$7*$H$103 -> 12.24 | F103: =$F$7*$H$103 -> 8.16 | G103: è | H103: 0.085
A104: 6th | B104: =$B$7*$H$104 -> 20.16 | C104: =$C$7*$H$104 -> 16.8 | D104: =$D$7*$H$104 -> 13.44 | E104: =$E$7*$H$104 -> 10.08 | F104: =$F$7*$H$104 -> 6.72 | G104: è | H104: 0.07
A105: 7th | B105: =$B$7*$H$105 -> 17.28 | C105: =$C$7*$H$105 -> 14.4 | D105: =$D$7*$H$105 -> 11.52 | E105: =$E$7*$H$105 -> 8.64 | F105: =$F$7*$H$105 -> 5.76 | G105: è | H105: 0.06
A106: 8th | B106: =$B$7*$H$106 -> 14.4 | C106: =$C$7*$H$106 -> 12 | D106: =$D$7*$H$106 -> 9.6 | E106: =$E$7*$H$106 -> 7.2 | F106: =$F$7*$H$106 -> 4.8 | G106: è | H106: 0.05
A107: 9th | B107: =$B$7*$H$107 -> 12.24 | C107: =$C$7*$H$107 -> 10.2 | D107: =$D$7*$H$107 -> 8.16 | E107: =$E$7*$H$107 -> 6.12 | F107: =$F$7*$H$107 -> 4.08 | G107: è | H107: 0.0425
A108: 10th | B108: =$B$7*$H$108 -> 10.08 | C108: =$C$7*$H$108 -> 8.4 | D108: =$D$7*$H$108 -> 6.72 | E108: =$E$7*$H$108 -> 5.04 | F108: =$F$7*$H$108 -> 3.36 | G108: è | H108: 0.035
A109: 11th | B109: =$B$7*$H$109 -> 8.64 | C109: =$C$7*$H$109 -> 7.2 | D109: =$D$7*$H$109 -> 5.76 | E109: =$E$7*$H$109 -> 4.32 | F109: =$F$7*$H$109 -> 2.88 | G109: è | H109: 0.03
A110: 12th | B110: =$B$7*$H$110 -> 7.2 | C110: =$C$7*$H$110 -> 6 | D110: =$D$7*$H$110 -> 4.8 | E110: =$E$7*$H$110 -> 3.6 | F110: =$F$7*$H$110 -> 2.4 | G110: è | H110: 0.025
A111: 13th | B111: =$B$7*$H$111 -> 5.76 | C111: =$C$7*$H$111 -> 4.8 | D111: =$D$7*$H$111 -> 3.84 | E111: =$E$7*$H$111 -> 2.88 | F111: =$F$7*$H$111 -> 1.92 | G111: è | H111: 0.02
A112: 14th | B112: =$B$7*$H$112 -> 5.04 | C112: =$C$7*$H$112 -> 4.2 | D112: =$D$7*$H$112 -> 3.36 | E112: =$E$7*$H$112 -> 2.52 | F112: =$F$7*$H$112 -> 1.68 | G112: è | H112: 0.0175
A113: 15th | B113: =$B$7*$H$113 -> 4.32 | C113: =$C$7*$H$113 -> 3.6 | D113: =$D$7*$H$113 -> 2.88 | E113: =$E$7*$H$113 -> 2.16 | F113: =$F$7*$H$113 -> 1.44 | G113: è | H113: 0.015
A114: Totals | B114: =SUM(B99:B113) -> 288 | C114: =SUM(C99:C113) -> 240 | D114: =SUM(D99:D113) -> 192 | E114: =SUM(E99:E113) -> 144 | F114: =SUM(F99:F113) -> 96 | G114: =SUM(B114:F114) -> 960 | H114: =SUM(H99:H113) -> 1
A116: For 1001-1500 riders 20 places
A117: Placings | B117: 1D | C117: 2D | D117: 3D | E117: 4D | F117: 5D
A118: 1st | B118: =$B$7*$H$118 -> 40.32 | C118: =$C$7*$H$118 -> 33.6 | D118: =$D$7*$H$118 -> 26.88 | E118: =$E$7*$H$118 -> 20.16 | F118: =$F$7*$H$118 -> 13.44 | G118: è | H118: 0.14
A119: 2nd | B119: =$B$7*$H$119 -> 31.68 | C119: =$C$7*$H$119 -> 26.4 | D119: =$D$7*$H$119 -> 21.12 | E119: =$E$7*$H$119 -> 15.84 | F119: =$F$7*$H$119 -> 10.56 | G119: è | H119: 0.11
A120: 3rd | B120: =$B$7*$H$120 -> 25.92 | C120: =$C$7*$H$120 -> 21.6 | D120: =$D$7*$H$120 -> 17.28 | E120: =$E$7*$H$120 -> 12.96 | F120: =$F$7*$H$120 -> 8.64 | G120: è | H120: 0.09
A121: 4th | B121: =$B$7*$H$121 -> 22.176 | C121: =$C$7*$H$121 -> 18.48 | D121: =$D$7*$H$121 -> 14.784 | E121: =$E$7*$H$121 -> 11.088 | F121: =$F$7*$H$121 -> 7.392 | G121: è | H121: 0.077
A122: 5th | B122: =$B$7*$H$122 -> 20.16 | C122: =$C$7*$H$122 -> 16.8 | D122: =$D$7*$H$122 -> 13.44 | E122: =$E$7*$H$122 -> 10.08 | F122: =$F$7*$H$122 -> 6.72 | G122: è | H122: 0.07
A123: 6th | B123: =$B$7*$H$123 -> 18.72 | C123: =$C$7*$H$123 -> 15.6 | D123: =$D$7*$H$123 -> 12.48 | E123: =$E$7*$H$123 -> 9.36 | F123: =$F$7*$H$123 -> 6.24 | G123: è | H123: 0.065
A124: 7th | B124: =$B$7*$H$124 -> 17.28 | C124: =$C$7*$H$124 -> 14.4 | D124: =$D$7*$H$124 -> 11.52 | E124: =$E$7*$H$124 -> 8.64 | F124: =$F$7*$H$124 -> 5.76 | G124: è | H124: 0.06
A125: 8th | B125: =$B$7*$H$125 -> 15.84 | C125: =$C$7*$H$125 -> 13.2 | D125: =$D$7*$H$125 -> 10.56 | E125: =$E$7*$H$125 -> 7.92 | F125: =$F$7*$H$125 -> 5.28 | G125: è | H125: 0.055
A126: 9th | B126: =$B$7*$H$126 -> 14.4 | C126: =$C$7*$H$126 -> 12 | D126: =$D$7*$H$126 -> 9.6 | E126: =$E$7*$H$126 -> 7.2 | F126: =$F$7*$H$126 -> 4.8 | G126: è | H126: 0.05
A127: 10th | B127: =$B$7*$H$127 -> 12.96 | C127: =$C$7*$H$127 -> 10.8 | D127: =$D$7*$H$127 -> 8.64 | E127: =$E$7*$H$127 -> 6.48 | F127: =$F$7*$H$127 -> 4.32 | G127: è | H127: 0.045
A128: 11th | B128: =$B$7*$H$128 -> 11.52 | C128: =$C$7*$H$128 -> 9.6 | D128: =$D$7*$H$128 -> 7.68 | E128: =$E$7*$H$128 -> 5.76 | F128: =$F$7*$H$128 -> 3.84 | G128: è | H128: 0.04
A129: 12th | B129: =$B$7*$H$129 -> 10.656 | C129: =$C$7*$H$129 -> 8.88 | D129: =$D$7*$H$129 -> 7.104 | E129: =$E$7*$H$129 -> 5.328 | F129: =$F$7*$H$129 -> 3.552 | G129: è | H129: 0.037
A130: 13th | B130: =$B$7*$H$130 -> 9.504 | C130: =$C$7*$H$130 -> 7.92 | D130: =$D$7*$H$130 -> 6.336 | E130: =$E$7*$H$130 -> 4.752 | F130: =$F$7*$H$130 -> 3.168 | G130: è | H130: 0.033
A131: 14th | B131: =$B$7*$H$131 -> 8.352 | C131: =$C$7*$H$131 -> 6.96 | D131: =$D$7*$H$131 -> 5.568 | E131: =$E$7*$H$131 -> 4.176 | F131: =$F$7*$H$131 -> 2.784 | G131: è | H131: 0.029
A132: 15th | B132: =$B$7*$H$132 -> 7.2 | C132: =$C$7*$H$132 -> 6 | D132: =$D$7*$H$132 -> 4.8 | E132: =$E$7*$H$132 -> 3.6 | F132: =$F$7*$H$132 -> 2.4 | G132: è | H132: 0.025
A133: 16th | B133: =$B$7*$H$133 -> 6.048 | C133: =$C$7*$H$133 -> 5.04 | D133: =$D$7*$H$133 -> 4.032 | E133: =$E$7*$H$133 -> 3.024 | F133: =$F$7*$H$133 -> 2.016 | G133: è | H133: 0.021
A134: 17th | B134: =$B$7*$H$134 -> 4.896 | C134: =$C$7*$H$134 -> 4.08 | D134: =$D$7*$H$134 -> 3.264 | E134: =$E$7*$H$134 -> 2.448 | F134: =$F$7*$H$134 -> 1.632 | G134: è | H134: 0.017
A135: 18th | B135: =$B$7*$H$135 -> 4.032 | C135: =$C$7*$H$135 -> 3.36 | D135: =$D$7*$H$135 -> 2.688 | E135: =$E$7*$H$135 -> 2.016 | F135: =$F$7*$H$135 -> 1.344 | G135: è | H135: 0.014
A136: 19th | B136: =$B$7*$H$136 -> 3.456 | C136: =$C$7*$H$136 -> 2.88 | D136: =$D$7*$H$136 -> 2.304 | E136: =$E$7*$H$136 -> 1.728 | F136: =$F$7*$H$136 -> 1.152 | G136: è | H136: 0.012
A137: 20th | B137: =$B$7*$H$137 -> 2.88 | C137: =$C$7*$H$137 -> 2.4 | D137: =$D$7*$H$137 -> 1.92 | E137: =$E$7*$H$137 -> 1.44 | F137: =$F$7*$H$137 -> 0.96 | G137: è | H137: 0.01
A138: Totals | B138: =SUM(B118:B137) -> 288 | C138: =SUM(C118:C137) -> 240 | D138: 192 | E138: 144 | F138: 96 | G138: =SUM(B138:F138) -> 960 | H138: =SUM(H118:H137) -> 1
A140: For 1501 or More riders 30 places
A141: Placings | B141: 1D | C141: 2D | D141: 3D | E141: 4D | F141: 5D
A142: 1st | B142: =$B$7*$H142 -> 34.56 | C142: =$C$7*$H142 -> 28.8 | D142: =$D$7*$H142 -> 23.04 | E142: =$E$7*$H142 -> 17.28 | F142: =$F$7*$H142 -> 11.52 | G142: è | H142: 0.12
A143: 2nd | B143: =$B$7*$H143 -> 27.36 | C143: 22.8 | D143: 18.24 | E143: 13.68 | F143: 9.12 | G143: è | H143: 0.095
A144: 3rd | B144: =$B$7*$H144 -> 21.024 | C144: 17.52 | D144: 14.016 | E144: 10.512 | F144: 7.008 | G144: è | H144: 0.073
A145: 4th | B145: =$B$7*$H145 -> 17.856 | C145: 14.88 | D145: 11.904 | E145: 8.928 | F145: 5.952 | G145: è | H145: 0.062
A146: 5th | B146: 14.4 | C146: 12 | D146: 9.6 | E146: 7.2 | F146: 4.8 | G146: è | H146: 0.05
A147: 6th | B147: 12.96 | C147: 10.8 | D147: 8.64 | E147: 6.48 | F147: 4.32 | G147: è | H147: 0.045
A148: 7th | B148: 12.384 | C148: 10.32 | D148: 8.256 | E148: 6.192 | F148: 4.128 | G148: è | H148: 0.043
A149: 8th | B149: 11.52 | C149: 9.6 | D149: 7.68 | E149: 5.76 | F149: 3.84 | G149: è | H149: 0.04
A150: 9th | B150: 10.656 | C150: 8.88 | D150: 7.104 | E150: 5.328 | F150: 3.552 | G150: è | H150: 0.037
A151: 10th | B151: 10.08 | C151: 8.4 | D151: 6.72 | E151: 5.04 | F151: 3.36 | G151: è | H151: 0.035
A152: 11th | B152: 9.504 | C152: 7.92 | D152: 6.336 | E152: 4.752 | F152: 3.168 | G152: è | H152: 0.033
A153: 12th | B153: 8.928 | C153: 7.44 | D153: 5.952 | E153: 4.464 | F153: 2.976 | G153: è | H153: 0.031
A154: 13th | B154: 8.352 | C154: 6.96 | D154: 5.568 | E154: 4.176 | F154: 2.784 | G154: è | H154: 0.029
A155: 14th | B155: 7.776 | C155: 6.48 | D155: 5.184 | E155: 3.888 | F155: 2.592 | G155: è | H155: 0.027
A156: 15th | B156: 7.2 | C156: 6 | D156: 4.8 | E156: 3.6 | F156: 2.4 | G156: è | H156: 0.025
A157: 16th | B157: 6.912 | C157: 5.76 | D157: 4.608 | E157: 3.456 | F157: 2.304 | G157: è | H157: 0.024
A158: 17th | B158: 6.624 | C158: 5.52 | D158: 4.416 | E158: 3.312 | F158: 2.208 | G158: è | H158: 0.023
A159: 18th | B159: 6.336 | C159: 5.28 | D159: 4.224 | E159: 3.168 | F159: 2.112 | G159: è | H159: 0.022
A160: 19th | B160: 6.048 | C160: 5.04 | D160: 4.032 | E160: 3.024 | F160: 2.016 | G160: è | H160: 0.021
A161: 20th | B161: 5.76 | C161: 4.8 | D161: 3.84 | E161: 2.88 | F161: 1.92 | G161: è | H161: 0.02
A162: 21st | B162: 5.472 | C162: 4.56 | D162: 3.648 | E162: 2.736 | F162: 1.824 | G162: è | H162: 0.019
A163: 22nd | B163: 5.184 | C163: 4.32 | D163: 3.456 | E163: 2.592 | F163: 1.728 | G163: è | H163: 0.018
A164: 23rd | B164: 4.896 | C164: 4.08 | D164: 3.264 | E164: 2.448 | F164: 1.632 | G164: è | H164: 0.017
A165: 24th | B165: 4.608 | C165: 3.84 | D165: 3.072 | E165: 2.304 | F165: 1.536 | G165: è | H165: 0.016
A166: 25th | B166: 4.32 | C166: 3.6 | D166: 2.88 | E166: 2.16 | F166: 1.44 | G166: è | H166: 0.015
A167: 26th | B167: 4.032 | C167: 3.36 | D167: 2.688 | E167: 2.016 | F167: 1.344 | G167: è | H167: 0.014
A168: 27th | B168: 3.744 | C168: 3.12 | D168: 2.496 | E168: 1.872 | F168: 1.248 | G168: è | H168: 0.013
A169: 28th | B169: 3.456 | C169: 2.88 | D169: 2.304 | E169: 1.728 | F169: 1.152 | G169: è | H169: 0.012
A170: 29th | B170: 3.168 | C170: 2.64 | D170: 2.112 | E170: 1.584 | F170: 1.056 | G170: è | H170: 0.011
A171: 30th | B171: 2.88 | C171: 2.4 | D171: 1.92 | E171: 1.44 | F171: 0.96 | G171: è | H171: 0.01
A172: Totals | B172: =SUM(B142:B171) -> 288 | C172: =SUM(C142:C171) -> 240 | D172: 192 | E172: 144 | F172: 96 | G172: =SUM(B172:F172) -> 960 | H172: =SUM(H142:H171) -> 1

Sheet DON'T TOUCH (hidden)
A2: Yes | C2: S | D2: 5 | E2: X
C3: A | D3: 10
C4: Y | D4: 15
C5: P | D5: BP
D6: SCR
